Workbook

Sheet Atlantique Pré-pension (hidden)
A1: Police | B1: xxxxxxxxxx | D1: ID | E1: xxxxxx | H1: Date effet | I1: 2011-06-01 | M1: Differe | N1: 15 | O1: Nbre année de cotis pr cap dec | P1: =12*MIN(N1,10) -> 120
M2: Vieillissement | N2: 0
B3: Taux d'interet | G3: Frais d'acquisition | K3: Frais de Gestion | O3: Autres
B4: taux interet technique | C4: 0.035 | G4: taux de frais d'acquisition | H4: 0.02 | K4: taux frais fract. mens | L4: 0 | O4: date de naissance | P4: 1975-12-16 | Y4: =C4/12 -> 0.002916666667 | Z4: =C5/12 -> 0.002399166667
B5: taux interet reel | C5: =C4-L6*(1+C4) -> 0.02879 | G5: duree maximale pr calcul | H5: 20 | K5: taux frais gestion prime | L5: 0.03 | O5: taux majoration qx | P5: 0
B6: taux interet oper deces | C6: 0.035 | G6: Escompte? | H6: O | K6: taux frais gestion PM | L6: 0.006 | O6: date de calcul PM | P6: =DATE(YEAR(I1)+N1,MONTH(I1),DAY(I1)-1) -> 2026-05-31
C7: =C5/12 -> 0.002399166667 | E7: Cotisation | F7: 12000 | K7: taux frais gestion deces | L7: 0.2 | O7: Capital deces | P7: =F7*P1 -> 1440000 | Y7: =1+Y4 -> 1.002916667 | Z7: =1+Z4 -> 1.002399167 | AB7: =1-L5-H4 -> 0.95
B8: mensuel composé | C8: =(1+C5)^(1/12)-1 -> 0.002368079013 | E8: Capital au Terme | F8: =P206 -> 2397495.472 | K8: Assiette gestion contrat | L8: PHT | O8: Doublement deces accidentel | P8: 0 | Y8: =Y7^12 -> 1.035566953 | Z8: =Z7^12 -> 1.029172951
B14: taux interet technique | C14: 0.035
B15: taux interet reel | C15: =C14-L16*(1+C14) -> 0.035
B16: taux interet oper deces | C16: 0.035
C17: =C15/12 -> 0.002916666667
B18: mensuel composé | C18: =(1+C15)^(1/12)-1 -> 0.002870898719
A21: Nombre de Mois de service de la rente | D21: 18 | H21: Capital consttitif de la rente | K21: =D23*(1-(1+C18)^(-D21))/C18 -> 1751833.242
A23: Montant mesuel de la Rente | D23: 100000
Y25: =Y8-1 -> 0.03556695295 | Z25: =Z8-1 -> 0.02917295062 | AB25: =(Y7^60)-1 -> 0.1909428291 | AC25: =AB25/Y4 -> 65.46611285 | AD25: =0.95*Y7*6000 -> 5716.625
A26: N° | B26: Date réception | C26: Date échéance | D26: Cotis | E26: Cions | F26: Fract. | G26: Gestion | H26: Cot a investir | I26: Age | J26: qx annuel | K26: Prime dec comm annuelle | L26: Prime dec com mens | M26: Cot epargne | O26: PM debut | P26: PM Fin | Y26: =Y25/Y4 -> 12.19438387 | Z26: =Z25/Z4 -> 12.15961818 | AD26: =AD25*AC25 -> 374245.2174
A27: 1 | B27: =I1 -> 2011-06-01 | C27: =B27 -> 2011-06-01 | D27: =$F$7 -> 12000 | E27: =IF($H$6="O",IF(12*(YEAR(C27)-YEAR($I$1))+MONTH(C27)-MONTH($I$1)+1>12,0,D27*$H$4*MIN($H$5,$N$1)),D27*$H$4) -> 3600 | F27: =IF($L$8="Ppure",IF((12*YEAR(C27)+MONTH(C27))-(12*YEAR($P$6)+MONTH($P$6))>1,0,ROUND((D27-E27)*$L$4/(1+$L$4+$L$5),0)),D27*$L$4) -> 0 | G27: =IF($L$8="Ppure",IF((12*YEAR(C27)+MONTH(C27))-(12*YEAR($P$6)+MONTH($P$6))>1,0,ROUND((D27-E27)*$L$5/(1+$L$4+$L$5),0)),D27*$L$5) -> 360 | H27: =ROUND(D27-E27-F27-G27,1) -> 8040 | I27: =INT(YEAR(C27)-YEAR($P$4)+$N$2+(MONTH(C27)-MONTH($P$4))/12) -> 35 | J27: =INDEX('PM 60-64'!$A$2:$E$107,I27+1,4) -> 0.002584728033 | K27: =ROUND((J27*(1+$P$5)*(1+$C$6)^(-0.5)+$P$8)*(1+$L$7)*$P$7,0) -> 4390 | L27: =ROUND(-K27*(1+$L$4)/12,0) -> -366 | M27: =H27+L27 -> 7674 | O27: 0 | P27: =M27*(1+$C$8) -> 7692.172638 | Y27: =Y26*Y7 -> 12.22995082 | Z27: =Z26*Z7 -> 12.18879113 | AB27: =S27/H27 -> 0 | AE27: 1
A28: 2 | B28: =DATE(YEAR(B27),MONTH(B27)+1,DAY(B27)) -> 2011-07-01 | C28: =B28 -> 2011-07-01 | D28: 12000 | E28: =IF($H$6="O",IF(12*(YEAR(C28)-YEAR($I$1))+MONTH(C28)-MONTH($I$1)+1>12,0,D28*$H$4*MIN($H$5,$N$1)),D28*$H$4) -> 3600 | F28: =IF($L$8="Ppure",IF((12*YEAR(C28)+MONTH(C28))-(12*YEAR($P$6)+MONTH($P$6))>1,0,ROUND((D28-E28)*$L$4/(1+$L$4+$L$5),0)),D28*$L$4) -> 0 | G28: =IF($L$8="Ppure",IF((12*YEAR(C28)+MONTH(C28))-(12*YEAR($P$6)+MONTH($P$6))>1,0,ROUND((D28-E28)*$L$5/(1+$L$4+$L$5),0)),D28*$L$5) -> 360 | H28: 8040 | I28: 35 | J28: =INDEX('PM 60-64'!$A$2:$E$107,I28+1,4) -> 0.002584728033 | K28: 4390 | L28: =ROUND(-K28*(1+$L$4)/12,0) -> -366 | M28: 7674 | O28: =P27 -> 7692.172638 | P28: =(O28+M28)*(1+$C$8) -> 15402.56095 | Y28: =$H$27*Y27 -> 98328.80459 | Z28: =$H$27*Z27 -> 97997.88071 | AA28: 88815 | AE28: 2
A29: 3 | B29: =DATE(YEAR(B28),MONTH(B28)+1,DAY(B28)) -> 2011-08-01 | C29: 2011-08-01 | D29: 12000 | E29: 3600 | F29: 0 | G29: 360 | H29: 8040 | I29: 35 | J29: =INDEX('PM 60-64'!$A$2:$E$107,I29+1,4) -> 0.002584728033 | K29: 4390 | L29: =ROUND(-K29*(1+$L$4)/12,0) -> -366 | M29: 7674 | O29: =P28 -> 15402.56095 | P29: 23131.20807 | AE29: 3
A30: 4 | B30: 2011-09-01 | C30: 2011-09-01 | D30: 12000 | E30: 3600 | F30: 0 | G30: 360 | H30: 8040 | I30: 35 | J30: =INDEX('PM 60-64'!$A$2:$E$107,I30+1,4) -> 0.002584728033 | K30: 4390 | L30: -366 | M30: 7674 | O30: 23131.20807 | P30: 30878.15724 | AE30: 4
A31: 5 | B31: 2011-10-01 | C31: 2011-10-01 | D31: 12000 | E31: 3600 | F31: 0 | G31: 360 | H31: 8040 | I31: 35 | J31: =INDEX('PM 60-64'!$A$2:$E$107,I31+1,4) -> 0.002584728033 | K31: 4390 | L31: -366 | M31: 7674 | O31: 30878.15724 | P31: 38643.45179 | AE31: 5
A32: 6 | B32: 2011-11-01 | C32: 2011-11-01 | D32: 12000 | E32: 3600 | F32: 0 | G32: 360 | H32: 8040 | I32: 35 | J32: =INDEX('PM 60-64'!$A$2:$E$107,I32+1,4) -> 0.002584728033 | K32: 4390 | L32: -366 | M32: 7674 | O32: 38643.45179 | P32: 46427.13518 | AE32: 6
A33: 7 | B33: 2011-12-01 | C33: 2011-12-01 | D33: 12000 | E33: 3600 | F33: 0 | G33: 360 | H33: 8040 | I33: 36 | J33: =INDEX('PM 60-64'!$A$2:$E$107,I33+1,4) -> 0.002791433173 | K33: 4741 | L33: -395 | M33: 7645 | O33: 46427.13518 | P33: 54200.18226 | AE33: 7
A34: 8 | B34: 2012-01-01 | C34: 2012-01-01 | D34: 12000 | E34: 3600 | F34: 0 | G34: 360 | H34: 8040 | I34: 36 | J34: =INDEX('PM 60-64'!$A$2:$E$107,I34+1,4) -> 0.002791433173 | K34: 4741 | L34: -395 | M34: 7645 | O34: 54200.18226 | P34: 61991.63654 | AE34: 8
A35: 9 | B35: 2012-02-01 | C35: 2012-02-01 | D35: 12000 | E35: 3600 | F35: 0 | G35: 360 | H35: 8040 | I35: 36 | J35: =INDEX('PM 60-64'!$A$2:$E$107,I35+1,4) -> 0.002791433173 | K35: 4741 | L35: -395 | M35: 7645 | O35: 61991.63654 | P35: 69801.5416 | AE35: 9
A36: 10 | B36: 2012-03-01 | C36: 2012-03-01 | D36: 12000 | E36: 3600 | F36: 0 | G36: 360 | H36: 8040 | I36: 36 | J36: =INDEX('PM 60-64'!$A$2:$E$107,I36+1,4) -> 0.002791433173 | K36: 4741 | L36: -395 | M36: 7645 | O36: 69801.5416 | P36: 77629.94113 | AE36: 10
A37: 11 | B37: 2012-04-01 | C37: 2012-04-01 | D37: 12000 | E37: 3600 | F37: 0 | G37: 360 | H37: 8040 | I37: 36 | J37: =INDEX('PM 60-64'!$A$2:$E$107,I37+1,4) -> 0.002791433173 | K37: 4741 | L37: -395 | M37: 7645 | O37: 77629.94113 | P37: 85476.87893 | AE37: 11
A38: 12 | B38: 2012-05-01 | C38: 2012-05-01 | D38: 12000 | E38: 3600 | F38: 0 | G38: 360 | H38: 8040 | I38: 36 | J38: =INDEX('PM 60-64'!$A$2:$E$107,I38+1,4) -> 0.002791433173 | K38: 4741 | L38: -395 | M38: 7645 | O38: 85476.87893 | P38: 93342.3989 | X38: =SUM(H27:H38) -> 96480 | Y38: =SUM(S27:S38) -> 0 | Z38: =SUM(D27:D38) -> 144000 | AA38: =SUM(E27:E38) -> 43200 | AB38: =SUM(F27:F38) -> 0 | AC38: =SUM(G27:G38) -> 4320 | AE38: 12
A39: 13 | B39: 2012-06-01 | C39: 2012-06-01 | D39: 12000 | E39: 0 | F39: 0 | G39: 360 | H39: 11640 | I39: 36 | J39: =INDEX('PM 60-64'!$A$2:$E$107,I39+1,4) -> 0.002791433173 | K39: 4741 | L39: -395 | M39: 11245 | O39: 93342.3989 | P39: 104835.0701 | Y39: =SUM(W27:W38) -> 0 | AA39: =Z38-AA38 -> 100800 | AE39: 13
A40: 14 | B40: 2012-07-01 | C40: 2012-07-01 | D40: 12000 | E40: 0 | F40: 0 | G40: 360 | H40: 11640 | I40: 36 | J40: =INDEX('PM 60-64'!$A$2:$E$107,I40+1,4) -> 0.002791433173 | K40: 4741 | L40: -395 | M40: 11245 | O40: 104835.0701 | P40: 116354.9569 | AA40: =AA39-AB38 -> 100800 | AE40: 14
A41: 15 | B41: 2012-08-01 | C41: 2012-08-01 | D41: 12000 | E41: 0 | F41: 0 | G41: 360 | H41: 11640 | I41: 36 | J41: =INDEX('PM 60-64'!$A$2:$E$107,I41+1,4) -> 0.002791433173 | K41: 4741 | L41: -395 | M41: 11245 | O41: 116354.9569 | P41: 127902.1237 | AA41: =AA40-AC38 -> 96480 | AE41: 15
A42: 16 | B42: 2012-09-01 | C42: 2012-09-01 | D42: 12000 | E42: 0 | F42: 0 | G42: 360 | H42: 11640 | I42: 36 | J42: =INDEX('PM 60-64'!$A$2:$E$107,I42+1,4) -> 0.002791433173 | K42: 4741 | L42: -395 | M42: 11245 | O42: 127902.1237 | P42: 139476.6351 | AE42: 16
A43: 17 | B43: 2012-10-01 | C43: 2012-10-01 | D43: 12000 | E43: 0 | F43: 0 | G43: 360 | H43: 11640 | I43: 36 | J43: =INDEX('PM 60-64'!$A$2:$E$107,I43+1,4) -> 0.002791433173 | K43: 4741 | L43: -395 | M43: 11245 | O43: 139476.6351 | P43: 151078.5558 | AE43: 17
A44: 18 | B44: 2012-11-01 | C44: 2012-11-01 | D44: 12000 | E44: 0 | F44: 0 | G44: 360 | H44: 11640 | I44: 36 | J44: =INDEX('PM 60-64'!$A$2:$E$107,I44+1,4) -> 0.002791433173 | K44: 4741 | L44: -395 | M44: 11245 | O44: 151078.5558 | P44: 162707.9508 | AE44: 18
A45: 19 | B45: 2012-12-01 | C45: 2012-12-01 | D45: 12000 | E45: 0 | F45: 0 | G45: 360 | H45: 11640 | I45: 37 | J45: =INDEX('PM 60-64'!$A$2:$E$107,I45+1,4) -> 0.003015405061 | K45: 5122 | L45: -427 | M45: 11213 | O45: 162707.9508 | P45: 174332.8094 | AE45: 19
A46: 20 | B46: 2013-01-01 | C46: 2013-01-01 | D46: 12000 | E46: 0 | F46: 0 | G46: 360 | H46: 11640 | I46: 37 | J46: =INDEX('PM 60-64'!$A$2:$E$107,I46+1,4) -> 0.003015405061 | K46: 5122 | L46: -427 | M46: 11213 | O46: 174332.8094 | P46: 185985.1965 | AE46: 20
A47: 21 | B47: 2013-02-01 | C47: 2013-02-01 | D47: 12000 | E47: 0 | F47: 0 | G47: 360 | H47: 11640 | I47: 37 | J47: =INDEX('PM 60-64'!$A$2:$E$107,I47+1,4) -> 0.003015405061 | K47: 5122 | L47: -427 | M47: 11213 | O47: 185985.1965 | P47: 197665.1774 | AE47: 21
A48: 22 | B48: 2013-03-01 | C48: 2013-03-01 | D48: 12000 | E48: 0 | F48: 0 | G48: 360 | H48: 11640 | I48: 37 | J48: =INDEX('PM 60-64'!$A$2:$E$107,I48+1,4) -> 0.003015405061 | K48: 5122 | L48: -427 | M48: 11213 | O48: 197665.1774 | P48: 209372.8174 | AE48: 22
A49: 23 | B49: 2013-04-01 | C49: 2013-04-01 | D49: 12000 | E49: 0 | F49: 0 | G49: 360 | H49: 11640 | I49: 37 | J49: =INDEX('PM 60-64'!$A$2:$E$107,I49+1,4) -> 0.003015405061 | K49: 5122 | L49: -427 | M49: 11213 | O49: 209372.8174 | P49: 221108.1821 | AE49: 23
A50: 24 | B50: 2013-05-01 | C50: 2013-05-01 | D50: 12000 | E50: 0 | F50: 0 | G50: 360 | H50: 11640 | I50: 37 | J50: =INDEX('PM 60-64'!$A$2:$E$107,I50+1,4) -> 0.003015405061 | K50: 5122 | L50: -427 | M50: 11213 | O50: 221108.1821 | P50: 232871.337 | X50: =SUM(H39:H50) -> 139680 | Y50: =SUM(S39:S50) -> 0 | Z50: =SUM(D39:D50) -> 144000 | AA50: =SUM(E39:E50) -> 0 | AB50: =SUM(F39:F50) -> 0 | AC50: =SUM(G39:G50) -> 4320 | AE50: 24
A51: 25 | B51: 2013-06-01 | C51: 2013-06-01 | D51: 12000 | E51: 0 | F51: 0 | G51: 360 | H51: 11640 | I51: 37 | J51: =INDEX('PM 60-64'!$A$2:$E$107,I51+1,4) -> 0.003015405061 | K51: 5122 | L51: -427 | M51: 11213 | O51: 232871.337 | P51: 244662.348 | Y51: =Y38+Y50 -> 0 | AE51: 25
A52: 26 | B52: 2013-07-01 | C52: 2013-07-01 | D52: 12000 | E52: 0 | F52: 0 | G52: 360 | H52: 11640 | I52: 37 | J52: =INDEX('PM 60-64'!$A$2:$E$107,I52+1,4) -> 0.003015405061 | K52: 5122 | L52: -427 | M52: 11213 | O52: 244662.348 | P52: 256481.281 | AE52: 26
A53: 27 | B53: 2013-08-01 | C53: 2013-08-01 | D53: 12000 | E53: 0 | F53: 0 | G53: 360 | H53: 11640 | I53: 37 | J53: =INDEX('PM 60-64'!$A$2:$E$107,I53+1,4) -> 0.003015405061 | K53: 5122 | L53: -427 | M53: 11213 | O53: 256481.281 | P53: 268328.2022 | AE53: 27
A54: 28 | B54: 2013-09-01 | C54: 2013-09-01 | D54: 12000 | E54: 0 | F54: 0 | G54: 360 | H54: 11640 | I54: 37 | J54: =INDEX('PM 60-64'!$A$2:$E$107,I54+1,4) -> 0.003015405061 | K54: 5122 | L54: -427 | M54: 11213 | O54: 268328.2022 | P54: 280203.1779 | AE54: 28
A55: 29 | B55: 2013-10-01 | C55: 2013-10-01 | D55: 12000 | E55: 0 | F55: 0 | G55: 360 | H55: 11640 | I55: 37 | J55: =INDEX('PM 60-64'!$A$2:$E$107,I55+1,4) -> 0.003015405061 | K55: 5122 | L55: -427 | M55: 11213 | O55: 280203.1779 | P55: 292106.2744 | AE55: 29
A56: 30 | B56: 2013-11-01 | C56: 2013-11-01 | D56: 12000 | E56: 0 | F56: 0 | G56: 360 | H56: 11640 | I56: 37 | J56: =INDEX('PM 60-64'!$A$2:$E$107,I56+1,4) -> 0.003015405061 | K56: 5122 | L56: -427 | M56: 11213 | O56: 292106.2744 | P56: 304037.5584 | AE56: 30
A57: 31 | B57: 2013-12-01 | C57: 2013-12-01 | D57: 12000 | E57: 0 | F57: 0 | G57: 360 | H57: 11640 | I57: 38 | J57: =INDEX('PM 60-64'!$A$2:$E$107,I57+1,4) -> 0.003261127424 | K57: 5539 | L57: -462 | M57: 11178 | O57: 304037.5584 | P57: 315962.0138 | AE57: 31
A58: 32 | B58: 2014-01-01 | C58: 2014-01-01 | D58: 12000 | E58: 0 | F58: 0 | G58: 360 | H58: 11640 | I58: 38 | J58: =INDEX('PM 60-64'!$A$2:$E$107,I58+1,4) -> 0.003261127424 | K58: 5539 | L58: -462 | M58: 11178 | O58: 315962.0138 | P58: 327914.7072 | AE58: 32
A59: 33 | B59: 2014-02-01 | C59: 2014-02-01 | D59: 12000 | E59: 0 | F59: 0 | G59: 360 | H59: 11640 | I59: 38 | J59: =INDEX('PM 60-64'!$A$2:$E$107,I59+1,4) -> 0.003261127424 | K59: 5539 | L59: -462 | M59: 11178 | O59: 327914.7072 | P59: 339895.7055 | AE59: 33
A60: 34 | B60: 2014-03-01 | C60: 2014-03-01 | D60: 12000 | E60: 0 | F60: 0 | G60: 360 | H60: 11640 | I60: 38 | J60: =INDEX('PM 60-64'!$A$2:$E$107,I60+1,4) -> 0.003261127424 | K60: 5539 | L60: -462 | M60: 11178 | O60: 339895.7055 | P60: 351905.0758 | AE60: 34
A61: 35 | B61: 2014-04-01 | C61: 2014-04-01 | D61: 12000 | E61: 0 | F61: 0 | G61: 360 | H61: 11640 | I61: 38 | J61: =INDEX('PM 60-64'!$A$2:$E$107,I61+1,4) -> 0.003261127424 | K61: 5539 | L61: -462 | M61: 11178 | O61: 351905.0758 | P61: 363942.8852 | AE61: 35
A62: 36 | B62: 2014-05-01 | C62: 2014-05-01 | D62: 12000 | E62: 0 | F62: 0 | G62: 360 | H62: 11640 | I62: 38 | J62: =INDEX('PM 60-64'!$A$2:$E$107,I62+1,4) -> 0.003261127424 | K62: 5539 | L62: -462 | M62: 11178 | O62: 363942.8852 | P62: 376009.2011 | X62: =SUM(H51:H62) -> 139680 | Y62: =SUM(S51:S62) -> 0 | AE62: 36
A63: 37 | B63: 2014-06-01 | C63: 2014-06-01 | D63: 12000 | E63: 0 | F63: 0 | G63: 360 | H63: 11640 | I63: 38 | J63: =INDEX('PM 60-64'!$A$2:$E$107,I63+1,4) -> 0.003261127424 | K63: 5539 | L63: -462 | M63: 11178 | O63: 376009.2011 | P63: 388104.091 | AE63: 37
A64: 38 | B64: 2014-07-01 | C64: 2014-07-01 | D64: 12000 | E64: 0 | F64: 0 | G64: 360 | H64: 11640 | I64: 38 | J64: =INDEX('PM 60-64'!$A$2:$E$107,I64+1,4) -> 0.003261127424 | K64: 5539 | L64: -462 | M64: 11178 | O64: 388104.091 | P64: 400227.6225 | AE64: 38
A65: 39 | B65: 2014-08-01 | C65: 2014-08-01 | D65: 12000 | E65: 0 | F65: 0 | G65: 360 | H65: 11640 | I65: 38 | J65: =INDEX('PM 60-64'!$A$2:$E$107,I65+1,4) -> 0.003261127424 | K65: 5539 | L65: -462 | M65: 11178 | O65: 400227.6225 | P65: 412379.8635 | AE65: 39
A66: 40 | B66: 2014-09-01 | C66: 2014-09-01 | D66: 12000 | E66: 0 | F66: 0 | G66: 360 | H66: 11640 | I66: 38 | J66: =INDEX('PM 60-64'!$A$2:$E$107,I66+1,4) -> 0.003261127424 | K66: 5539 | L66: -462 | M66: 11178 | O66: 412379.8635 | P66: 424560.882 | AE66: 40
A67: 41 | B67: 2014-10-01 | C67: 2014-10-01 | D67: 12000 | E67: 0 | F67: 0 | G67: 360 | H67: 11640 | I67: 38 | J67: =INDEX('PM 60-64'!$A$2:$E$107,I67+1,4) -> 0.003261127424 | K67: 5539 | L67: -462 | M67: 11178 | O67: 424560.882 | P67: 436770.7461 | AE67: 41
A68: 42 | B68: 2014-11-01 | C68: 2014-11-01 | D68: 12000 | E68: 0 | F68: 0 | G68: 360 | H68: 11640 | I68: 38 | J68: =INDEX('PM 60-64'!$A$2:$E$107,I68+1,4) -> 0.003261127424 | K68: 5539 | L68: -462 | M68: 11178 | O68: 436770.7461 | P68: 449009.5242 | AE68: 42
A69: 43 | B69: 2014-12-01 | C69: 2014-12-01 | D69: 12000 | E69: 0 | F69: 0 | G69: 360 | H69: 11640 | I69: 39 | J69: =INDEX('PM 60-64'!$A$2:$E$107,I69+1,4) -> 0.003527933705 | K69: 5992 | L69: -499 | M69: 11141 | O69: 449009.5242 | P69: 461240.197 | AE69: 43
A70: 44 | B70: 2015-01-01 | C70: 2015-01-01 | D70: 12000 | E70: 0 | F70: 0 | G70: 360 | H70: 11640 | I70: 39 | J70: =INDEX('PM 60-64'!$A$2:$E$107,I70+1,4) -> 0.003527933705 | K70: 5992 | L70: -499 | M70: 11141 | O70: 461240.197 | P70: 473499.833 | AE70: 44
A71: 45 | B71: 2015-02-01 | C71: 2015-02-01 | D71: 12000 | E71: 0 | F71: 0 | G71: 360 | H71: 11640 | I71: 39 | J71: =INDEX('PM 60-64'!$A$2:$E$107,I71+1,4) -> 0.003527933705 | K71: 5992 | L71: -499 | M71: 11141 | O71: 473499.833 | P71: 485788.5007 | AE71: 45
A72: 46 | B72: 2015-03-01 | C72: 2015-03-01 | D72: 12000 | E72: 0 | F72: 0 | G72: 360 | H72: 11640 | I72: 39 | J72: =INDEX('PM 60-64'!$A$2:$E$107,I72+1,4) -> 0.003527933705 | K72: 5992 | L72: -499 | M72: 11141 | O72: 485788.5007 | P72: 498106.2691 | AE72: 46
A73: 47 | B73: 2015-04-01 | C73: 2015-04-01 | D73: 12000 | E73: 0 | F73: 0 | G73: 360 | H73: 11640 | I73: 39 | J73: =INDEX('PM 60-64'!$A$2:$E$107,I73+1,4) -> 0.003527933705 | K73: 5992 | L73: -499 | M73: 11141 | O73: 498106.2691 | P73: 510453.2068 | AE73: 47
A74: 48 | B74: 2015-05-01 | C74: 2015-05-01 | D74: 12000 | E74: 0 | F74: 0 | G74: 360 | H74: 11640 | I74: 39 | J74: =INDEX('PM 60-64'!$A$2:$E$107,I74+1,4) -> 0.003527933705 | K74: 5992 | L74: -499 | M74: 11141 | O74: 510453.2068 | P74: 522829.3831 | X74: =SUM(H63:H74) -> 139680 | AE74: 48
A75: 49 | B75: 2015-06-01 | C75: 2015-06-01 | D75: 12000 | E75: 0 | F75: 0 | G75: 360 | H75: 11640 | I75: 39 | J75: =INDEX('PM 60-64'!$A$2:$E$107,I75+1,4) -> 0.003527933705 | K75: 5992 | L75: -499 | M75: 11141 | O75: 522829.3831 | P75: 535234.8672 | AE75: 49
A76: 50 | B76: 2015-07-01 | C76: 2015-07-01 | D76: 12000 | E76: 0 | F76: 0 | G76: 360 | H76: 11640 | I76: 39 | J76: =INDEX('PM 60-64'!$A$2:$E$107,I76+1,4) -> 0.003527933705 | K76: 5992 | L76: -499 | M76: 11141 | O76: 535234.8672 | P76: 547669.7284 | AE76: 50
A77: 51 | B77: 2015-08-01 | C77: 2015-08-01 | D77: 12000 | E77: 0 | F77: 0 | G77: 360 | H77: 11640 | I77: 39 | J77: =INDEX('PM 60-64'!$A$2:$E$107,I77+1,4) -> 0.003527933705 | K77: 5992 | L77: -499 | M77: 11141 | O77: 547669.7284 | P77: 560134.0364 | AE77: 51
A78: 52 | B78: 2015-09-01 | C78: 2015-09-01 | D78: 12000 | E78: 0 | F78: 0 | G78: 360 | H78: 11640 | I78: 39 | J78: =INDEX('PM 60-64'!$A$2:$E$107,I78+1,4) -> 0.003527933705 | K78: 5992 | L78: -499 | M78: 11141 | O78: 560134.0364 | P78: 572627.8608 | AE78: 52
A79: 53 | B79: 2015-10-01 | C79: 2015-10-01 | D79: 12000 | E79: 0 | F79: 0 | G79: 360 | H79: 11640 | I79: 39 | J79: =INDEX('PM 60-64'!$A$2:$E$107,I79+1,4) -> 0.003527933705 | K79: 5992 | L79: -499 | M79: 11141 | O79: 572627.8608 | P79: 585151.2716 | AE79: 53
A80: 54 | B80: 2015-11-01 | C80: 2015-11-01 | D80: 12000 | E80: 0 | F80: 0 | G80: 360 | H80: 11640 | I80: 39 | J80: =INDEX('PM 60-64'!$A$2:$E$107,I80+1,4) -> 0.003527933705 | K80: 5992 | L80: -499 | M80: 11141 | O80: 585151.2716 | P80: 597704.3388 | AE80: 54
A81: 55 | B81: 2015-12-01 | C81: 2015-12-01 | D81: 12000 | E81: 0 | F81: 0 | G81: 360 | H81: 11640 | I81: 40 | J81: =INDEX('PM 60-64'!$A$2:$E$107,I81+1,4) -> 0.003820531564 | K81: 6489 | L81: -541 | M81: 11099 | O81: 597704.3388 | P81: 610245.0332 | AE81: 55
A82: 56 | B82: 2016-01-01 | C82: 2016-01-01 | D82: 12000 | E82: 0 | F82: 0 | G82: 360 | H82: 11640 | I82: 40 | J82: =INDEX('PM 60-64'!$A$2:$E$107,I82+1,4) -> 0.003820531564 | K82: 6489 | L82: -541 | M82: 11099 | O82: 610245.0332 | P82: 622815.425 | AE82: 56
A83: 57 | B83: 2016-02-01 | C83: 2016-02-01 | D83: 12000 | E83: 0 | F83: 0 | G83: 360 | H83: 11640 | I83: 40 | J83: =INDEX('PM 60-64'!$A$2:$E$107,I83+1,4) -> 0.003820531564 | K83: 6489 | L83: -541 | M83: 11099 | O83: 622815.425 | P83: 635415.5844 | AE83: 57
A84: 58 | B84: 2016-03-01 | C84: 2016-03-01 | D84: 12000 | E84: 0 | F84: 0 | G84: 360 | H84: 11640 | I84: 40 | J84: =INDEX('PM 60-64'!$A$2:$E$107,I84+1,4) -> 0.003820531564 | K84: 6489 | L84: -541 | M84: 11099 | O84: 635415.5844 | P84: 648045.582 | AE84: 58
A85: 59 | B85: 2016-04-01 | C85: 2016-04-01 | D85: 12000 | E85: 0 | F85: 0 | G85: 360 | H85: 11640 | I85: 40 | J85: =INDEX('PM 60-64'!$A$2:$E$107,I85+1,4) -> 0.003820531564 | K85: 6489 | L85: -541 | M85: 11099 | O85: 648045.582 | P85: 660705.4885 | AE85: 59
A86: 60 | B86: 2016-05-01 | C86: 2016-05-01 | D86: 12000 | E86: 0 | F86: 0 | G86: 360 | H86: 11640 | I86: 40 | J86: =INDEX('PM 60-64'!$A$2:$E$107,I86+1,4) -> 0.003820531564 | K86: 6489 | L86: -541 | M86: 11099 | O86: 660705.4885 | P86: 673395.3746 | X86: =SUM(H75:H86) -> 139680 | AE86: 60
A87: 61 | B87: 2016-06-01 | C87: 2016-06-01 | D87: 12000 | E87: 0 | F87: 0 | G87: 360 | H87: 11640 | I87: 40 | J87: =INDEX('PM 60-64'!$A$2:$E$107,I87+1,4) -> 0.003820531564 | K87: 6489 | L87: -541 | M87: 11099 | O87: 673395.3746 | P87: 686115.3114
A88: 62 | B88: 2016-07-01 | C88: 2016-07-01 | D88: 12000 | E88: 0 | F88: 0 | G88: 360 | H88: 11640 | I88: 40 | J88: =INDEX('PM 60-64'!$A$2:$E$107,I88+1,4) -> 0.003820531564 | K88: 6489 | L88: -541 | M88: 11099 | O88: 686115.3114 | P88: 698865.3699
A89: 63 | B89: 2016-08-01 | C89: 2016-08-01 | D89: 12000 | E89: 0 | F89: 0 | G89: 360 | H89: 11640 | I89: 40 | J89: =INDEX('PM 60-64'!$A$2:$E$107,I89+1,4) -> 0.003820531564 | K89: 6489 | L89: -541 | M89: 11099 | O89: 698865.3699 | P89: 711645.6217
A90: 64 | B90: 2016-09-01 | C90: 2016-09-01 | D90: 12000 | E90: 0 | F90: 0 | G90: 360 | H90: 11640 | I90: 40 | J90: =INDEX('PM 60-64'!$A$2:$E$107,I90+1,4) -> 0.003820531564 | K90: 6489 | L90: -541 | M90: 11099 | O90: 711645.6217 | P90: 724456.138
A91: 65 | B91: 2016-10-01 | C91: 2016-10-01 | D91: =$F$7 -> 12000 | E91: 0 | F91: 0 | G91: 360 | H91: =ROUND(D91-E91-F91-G91,1) -> 11640 | I91: =INT(YEAR(C91)-YEAR($P$4)+$N$2+(MONTH(C91)-MONTH($P$4))/12) -> 40 | J91: =INDEX('PM 60-64'!$A$2:$E$107,I91+1,4) -> 0.003820531564 | K91: =ROUND((J91*(1+$P$5)*(1+$C$6)^(-0.5)+$P$8)*(1+$L$7)*$P$7,0) -> 6489 | L91: =ROUND(-K91*(1+$L$4)/12,0) -> -541 | M91: =H91+L91 -> 11099 | O91: 724456.138 | P91: 737296.9907
A92: 66 | B92: 2016-11-01 | C92: =B92 -> 2016-11-01 | D92: 12000 | E92: =IF($H$6="O",IF(12*(YEAR(C92)-YEAR($I$1))+MONTH(C92)-MONTH($I$1)+1>12,0,D92*$H$4*MIN($H$5,$N$1)),D92*$H$4) -> 0 | F92: =IF($L$8="Ppure",IF((12*YEAR(C92)+MONTH(C92))-(12*YEAR($P$6)+MONTH($P$6))>1,0,ROUND((D92-E92)*$L$4/(1+$L$4+$L$5),0)),D92*$L$4) -> 0 | G92: =IF($L$8="Ppure",IF((12*YEAR(C92)+MONTH(C92))-(12*YEAR($P$6)+MONTH($P$6))>1,0,ROUND((D92-E92)*$L$5/(1+$L$4+$L$5),0)),D92*$L$5) -> 360 | H92: 11640 | I92: 40 | J92: =INDEX('PM 60-64'!$A$2:$E$107,I92+1,4) -> 0.003820531564 | K92: 6489 | L92: -541 | M92: 11099 | O92: 737296.9907 | P92: =(O92+M92)*(1+$C$8) -> 750168.2516
A93: 67 | B93: =DATE(YEAR(B92),MONTH(B92)+1,DAY(B92)) -> 2016-12-01 | C93: 2016-12-01 | D93: 12000 | E93: 0 | F93: 0 | G93: 360 | H93: 11640 | I93: 41 | J93: =INDEX('PM 60-64'!$A$2:$E$107,I93+1,4) -> 0.004139503834 | K93: 7031 | L93: -586 | M93: 11054 | O93: =P92 -> 750168.2516 | P93: 763024.886
A94: 68 | B94: 2017-01-01 | C94: 2017-01-01 | D94: 12000 | E94: 0 | F94: 0 | G94: 360 | H94: 11640 | I94: 41 | J94: =INDEX('PM 60-64'!$A$2:$E$107,I94+1,4) -> 0.004139503834 | K94: 7031 | L94: -586 | M94: 11054 | O94: 763024.886 | P94: 775911.966
A95: 69 | B95: 2017-02-01 | C95: 2017-02-01 | D95: 12000 | E95: 0 | F95: 0 | G95: 360 | H95: 11640 | I95: 41 | J95: =INDEX('PM 60-64'!$A$2:$E$107,I95+1,4) -> 0.004139503834 | K95: 7031 | L95: -586 | M95: 11054 | O95: 775911.966 | P95: 788829.5635
A96: 70 | B96: 2017-03-01 | C96: 2017-03-01 | D96: 12000 | E96: 0 | F96: 0 | G96: 360 | H96: 11640 | I96: 41 | J96: =INDEX('PM 60-64'!$A$2:$E$107,I96+1,4) -> 0.004139503834 | K96: 7031 | L96: -586 | M96: 11054 | O96: 788829.5635 | P96: 801777.751
A97: 71 | B97: 2017-04-01 | C97: 2017-04-01 | D97: 12000 | E97: 0 | F97: 0 | G97: 360 | H97: 11640 | I97: 41 | J97: =INDEX('PM 60-64'!$A$2:$E$107,I97+1,4) -> 0.004139503834 | K97: 7031 | L97: -586 | M97: 11054 | O97: 801777.751 | P97: 814756.6008
A98: 72 | B98: 2017-05-01 | C98: 2017-05-01 | D98: 12000 | E98: 0 | F98: 0 | G98: 360 | H98: 11640 | I98: 41 | J98: =INDEX('PM 60-64'!$A$2:$E$107,I98+1,4) -> 0.004139503834 | K98: 7031 | L98: -586 | M98: 11054 | O98: 814756.6008 | P98: 827766.1856
A99: 73 | B99: 2017-06-01 | C99: 2017-06-01 | D99: 12000 | E99: 0 | F99: 0 | G99: 360 | H99: 11640 | I99: 41 | J99: =INDEX('PM 60-64'!$A$2:$E$107,I99+1,4) -> 0.004139503834 | K99: 7031 | L99: -586 | M99: 11054 | O99: 827766.1856 | P99: 840806.5781
A100: 74 | B100: 2017-07-01 | C100: 2017-07-01 | D100: 12000 | E100: 0 | F100: 0 | G100: 360 | H100: 11640 | I100: 41 | J100: =INDEX('PM 60-64'!$A$2:$E$107,I100+1,4) -> 0.004139503834 | K100: 7031 | L100: -586 | M100: 11054 | O100: 840806.5781 | P100: 853877.8512
A101: 75 | B101: 2017-08-01 | C101: 2017-08-01 | D101: 12000 | E101: 0 | F101: 0 | G101: 360 | H101: 11640 | I101: 41 | J101: =INDEX('PM 60-64'!$A$2:$E$107,I101+1,4) -> 0.004139503834 | K101: 7031 | L101: -586 | M101: 11054 | O101: 853877.8512 | P101: 866980.0782
A102: 76 | B102: 2017-09-01 | C102: 2017-09-01 | D102: 12000 | E102: 0 | F102: 0 | G102: 360 | H102: 11640 | I102: 41 | J102: =INDEX('PM 60-64'!$A$2:$E$107,I102+1,4) -> 0.004139503834 | K102: 7031 | L102: -586 | M102: 11054 | O102: 866980.0782 | P102: 880113.3323
A103: 77 | B103: 2017-10-01 | C103: 2017-10-01 | D103: 12000 | E103: 0 | F103: 0 | G103: 360 | H103: 11640 | I103: 41 | J103: =INDEX('PM 60-64'!$A$2:$E$107,I103+1,4) -> 0.004139503834 | K103: 7031 | L103: -586 | M103: 11054 | O103: 880113.3323 | P103: 893277.6869
A104: 78 | B104: 2017-11-01 | C104: 2017-11-01 | D104: 12000 | E104: 0 | F104: 0 | G104: 360 | H104: 11640 | I104: 41 | J104: =INDEX('PM 60-64'!$A$2:$E$107,I104+1,4) -> 0.004139503834 | K104: 7031 | L104: -586 | M104: 11054 | O104: 893277.6869 | P104: 906473.2158
A105: 79 | B105: 2017-12-01 | C105: 2017-12-01 | D105: 12000 | E105: 0 | F105: 0 | G105: 360 | H105: 11640 | I105: 42 | J105: =INDEX('PM 60-64'!$A$2:$E$107,I105+1,4) -> 0.00448774607 | K105: 7623 | L105: -635 | M105: 11005 | O105: 906473.2158 | P105: 919650.8767
A106: 80 | B106: 2018-01-01 | C106: 2018-01-01 | D106: 12000 | E106: 0 | F106: 0 | G106: 360 | H106: 11640 | I106: 42 | J106: =INDEX('PM 60-64'!$A$2:$E$107,I106+1,4) -> 0.00448774607 | K106: 7623 | L106: -635 | M106: 11005 | O106: 919650.8767 | P106: 932859.7434
A107: 81 | B107: 2018-02-01 | C107: 2018-02-01 | D107: 12000 | E107: 0 | F107: 0 | G107: 360 | H107: 11640 | I107: 42 | J107: =INDEX('PM 60-64'!$A$2:$E$107,I107+1,4) -> 0.00448774607 | K107: 7623 | L107: -635 | M107: 11005 | O107: 932859.7434 | P107: 946099.8896
A108: 82 | B108: 2018-03-01 | C108: 2018-03-01 | D108: 12000 | E108: 0 | F108: 0 | G108: 360 | H108: 11640 | I108: 42 | J108: =INDEX('PM 60-64'!$A$2:$E$107,I108+1,4) -> 0.00448774607 | K108: 7623 | L108: -635 | M108: 11005 | O108: 946099.8896 | P108: 959371.3897
A109: 83 | B109: 2018-04-01 | C109: 2018-04-01 | D109: 12000 | E109: 0 | F109: 0 | G109: 360 | H109: 11640 | I109: 42 | J109: =INDEX('PM 60-64'!$A$2:$E$107,I109+1,4) -> 0.00448774607 | K109: 7623 | L109: -635 | M109: 11005 | O109: 959371.3897 | P109: 972674.3176
A110: 84 | B110: 2018-05-01 | C110: 2018-05-01 | D110: 12000 | E110: 0 | F110: 0 | G110: 360 | H110: 11640 | I110: 42 | J110: =INDEX('PM 60-64'!$A$2:$E$107,I110+1,4) -> 0.00448774607 | K110: 7623 | L110: -635 | M110: 11005 | O110: 972674.3176 | P110: 986008.748
A111: 85 | B111: 2018-06-01 | C111: 2018-06-01 | D111: 12000 | E111: 0 | F111: 0 | G111: 360 | H111: 11640 | I111: 42 | J111: =INDEX('PM 60-64'!$A$2:$E$107,I111+1,4) -> 0.00448774607 | K111: 7623 | L111: -635 | M111: 11005 | O111: 986008.748 | P111: 999374.7553
A112: 86 | B112: 2018-07-01 | C112: 2018-07-01 | D112: 12000 | E112: 0 | F112: 0 | G112: 360 | H112: 11640 | I112: 42 | J112: =INDEX('PM 60-64'!$A$2:$E$107,I112+1,4) -> 0.00448774607 | K112: 7623 | L112: -635 | M112: 11005 | O112: 999374.7553 | P112: 1012772.414
A113: 87 | B113: 2018-08-01 | C113: 2018-08-01 | D113: 12000 | E113: 0 | F113: 0 | G113: 360 | H113: 11640 | I113: 42 | J113: =INDEX('PM 60-64'!$A$2:$E$107,I113+1,4) -> 0.00448774607 | K113: 7623 | L113: -635 | M113: 11005 | O113: 1012772.414 | P113: 1026201.8
A114: 88 | B114: 2018-09-01 | C114: 2018-09-01 | D114: 12000 | E114: 0 | F114: 0 | G114: 360 | H114: 11640 | I114: 42 | J114: =INDEX('PM 60-64'!$A$2:$E$107,I114+1,4) -> 0.00448774607 | K114: 7623 | L114: -635 | M114: 11005 | O114: 1026201.8 | P114: 1039662.988
A115: 89 | B115: 2018-10-01 | C115: 2018-10-01 | D115: 12000 | E115: 0 | F115: 0 | G115: 360 | H115: 11640 | I115: 42 | J115: =INDEX('PM 60-64'!$A$2:$E$107,I115+1,4) -> 0.00448774607 | K115: 7623 | L115: -635 | M115: 11005 | O115: 1039662.988 | P115: 1053156.053
A116: 90 | B116: 2018-11-01 | C116: 2018-11-01 | D116: 12000 | E116: 0 | F116: 0 | G116: 360 | H116: 11640 | I116: 42 | J116: =INDEX('PM 60-64'!$A$2:$E$107,I116+1,4) -> 0.00448774607 | K116: 7623 | L116: -635 | M116: 11005 | O116: 1053156.053 | P116: 1066681.07
A117: 91 | B117: 2018-12-01 | C117: 2018-12-01 | D117: 12000 | E117: 0 | F117: 0 | G117: 360 | H117: 11640 | I117: 43 | J117: =INDEX('PM 60-64'!$A$2:$E$107,I117+1,4) -> 0.004868091463 | K117: 8269 | L117: -689 | M117: 10951 | O117: 1066681.07 | P117: 1080183.988
A118: 92 | B118: 2019-01-01 | C118: 2019-01-01 | D118: 12000 | E118: 0 | F118: 0 | G118: 360 | H118: 11640 | I118: 43 | J118: =INDEX('PM 60-64'!$A$2:$E$107,I118+1,4) -> 0.004868091463 | K118: 8269 | L118: -689 | M118: 10951 | O118: 1080183.988 | P118: 1093718.882
A119: 93 | B119: 2019-02-01 | C119: 2019-02-01 | D119: 12000 | E119: 0 | F119: 0 | G119: 360 | H119: 11640 | I119: 43 | J119: =INDEX('PM 60-64'!$A$2:$E$107,I119+1,4) -> 0.004868091463 | K119: 8269 | L119: -689 | M119: 10951 | O119: 1093718.882 | P119: 1107285.827
A120: 94 | B120: 2019-03-01 | C120: 2019-03-01 | D120: 12000 | E120: 0 | F120: 0 | G120: 360 | H120: 11640 | I120: 43 | J120: =INDEX('PM 60-64'!$A$2:$E$107,I120+1,4) -> 0.004868091463 | K120: 8269 | L120: -689 | M120: 10951 | O120: 1107285.827 | P120: 1120884.901
A121: 95 | B121: 2019-04-01 | C121: 2019-04-01 | D121: 12000 | E121: 0 | F121: 0 | G121: 360 | H121: 11640 | I121: 43 | J121: =INDEX('PM 60-64'!$A$2:$E$107,I121+1,4) -> 0.004868091463 | K121: 8269 | L121: -689 | M121: 10951 | O121: 1120884.901 | P121: 1134516.177
A122: 96 | B122: 2019-05-01 | C122: 2019-05-01 | D122: 12000 | E122: 0 | F122: 0 | G122: 360 | H122: 11640 | I122: 43 | J122: =INDEX('PM 60-64'!$A$2:$E$107,I122+1,4) -> 0.004868091463 | K122: 8269 | L122: -689 | M122: 10951 | O122: 1134516.177 | P122: 1148179.734
A123: 97 | B123: 2019-06-01 | C123: 2019-06-01 | D123: 12000 | E123: 0 | F123: 0 | G123: 360 | H123: 11640 | I123: 43 | J123: =INDEX('PM 60-64'!$A$2:$E$107,I123+1,4) -> 0.004868091463 | K123: 8269 | L123: -689 | M123: 10951 | O123: 1148179.734 | P123: 1161875.647
A124: 98 | B124: 2019-07-01 | C124: 2019-07-01 | D124: 12000 | E124: 0 | F124: 0 | G124: 360 | H124: 11640 | I124: 43 | J124: =INDEX('PM 60-64'!$A$2:$E$107,I124+1,4) -> 0.004868091463 | K124: 8269 | L124: -689 | M124: 10951 | O124: 1161875.647 | P124: 1175603.994
A125: 99 | B125: 2019-08-01 | C125: 2019-08-01 | D125: 12000 | E125: 0 | F125: 0 | G125: 360 | H125: 11640 | I125: 43 | J125: =INDEX('PM 60-64'!$A$2:$E$107,I125+1,4) -> 0.004868091463 | K125: 8269 | L125: -689 | M125: 10951 | O125: 1175603.994 | P125: 1189364.85
A126: 100 | B126: 2019-09-01 | C126: 2019-09-01 | D126: 12000 | E126: 0 | F126: 0 | G126: 360 | H126: 11640 | I126: 43 | J126: =INDEX('PM 60-64'!$A$2:$E$107,I126+1,4) -> 0.004868091463 | K126: 8269 | L126: -689 | M126: 10951 | O126: 1189364.85 | P126: 1203158.292
A127: 101 | B127: 2019-10-01 | C127: 2019-10-01 | D127: 12000 | E127: 0 | F127: 0 | G127: 360 | H127: 11640 | I127: 43 | J127: =INDEX('PM 60-64'!$A$2:$E$107,I127+1,4) -> 0.004868091463 | K127: 8269 | L127: -689 | M127: 10951 | O127: 1203158.292 | P127: 1216984.399
A128: 102 | B128: 2019-11-01 | C128: 2019-11-01 | D128: 12000 | E128: 0 | F128: 0 | G128: 360 | H128: 11640 | I128: 43 | J128: =INDEX('PM 60-64'!$A$2:$E$107,I128+1,4) -> 0.004868091463 | K128: 8269 | L128: -689 | M128: 10951 | O128: 1216984.399 | P128: 1230843.247
A129: 103 | B129: 2019-12-01 | C129: 2019-12-01 | D129: 12000 | E129: 0 | F129: 0 | G129: 360 | H129: 11640 | I129: 44 | J129: =INDEX('PM 60-64'!$A$2:$E$107,I129+1,4) -> 0.005283595734 | K129: 8974 | L129: -748 | M129: 10892 | O129: 1230843.247 | P129: 1244675.774
A130: 104 | B130: 2020-01-01 | C130: 2020-01-01 | D130: 12000 | E130: 0 | F130: 0 | G130: 360 | H130: 11640 | I130: 44 | J130: =INDEX('PM 60-64'!$A$2:$E$107,I130+1,4) -> 0.005283595734 | K130: 8974 | L130: -748 | M130: 10892 | O130: 1244675.774 | P130: 1258541.058
A131: 105 | B131: 2020-02-01 | C131: 2020-02-01 | D131: 12000 | E131: 0 | F131: 0 | G131: 360 | H131: 11640 | I131: 44 | J131: =INDEX('PM 60-64'!$A$2:$E$107,I131+1,4) -> 0.005283595734 | K131: 8974 | L131: -748 | M131: 10892 | O131: 1258541.058 | P131: 1272439.176
A132: 106 | B132: 2020-03-01 | C132: 2020-03-01 | D132: 12000 | E132: 0 | F132: 0 | G132: 360 | H132: 11640 | I132: 44 | J132: =INDEX('PM 60-64'!$A$2:$E$107,I132+1,4) -> 0.005283595734 | K132: 8974 | L132: -748 | M132: 10892 | O132: 1272439.176 | P132: 1286370.205
A133: 107 | B133: 2020-04-01 | C133: 2020-04-01 | D133: 12000 | E133: 0 | F133: 0 | G133: 360 | H133: 11640 | I133: 44 | J133: =INDEX('PM 60-64'!$A$2:$E$107,I133+1,4) -> 0.005283595734 | K133: 8974 | L133: -748 | M133: 10892 | O133: 1286370.205 | P133: 1300334.225
A134: 108 | B134: 2020-05-01 | C134: 2020-05-01 | D134: 12000 | E134: 0 | F134: 0 | G134: 360 | H134: 11640 | I134: 44 | J134: =INDEX('PM 60-64'!$A$2:$E$107,I134+1,4) -> 0.005283595734 | K134: 8974 | L134: -748 | M134: 10892 | O134: 1300334.225 | P134: 1314331.312
A135: 109 | B135: 2020-06-01 | C135: 2020-06-01 | D135: 12000 | E135: 0 | F135: 0 | G135: 360 | H135: 11640 | I135: 44 | J135: =INDEX('PM 60-64'!$A$2:$E$107,I135+1,4) -> 0.005283595734 | K135: 8974 | L135: -748 | M135: 10892 | O135: 1314331.312 | P135: 1328361.546
A136: 110 | B136: 2020-07-01 | C136: 2020-07-01 | D136: 12000 | E136: 0 | F136: 0 | G136: 360 | H136: 11640 | I136: 44 | J136: =INDEX('PM 60-64'!$A$2:$E$107,I136+1,4) -> 0.005283595734 | K136: 8974 | L136: -748 | M136: 10892 | O136: 1328361.546 | P136: 1342425.004
A137: 111 | B137: 2020-08-01 | C137: 2020-08-01 | D137: 12000 | E137: 0 | F137: 0 | G137: 360 | H137: 11640 | I137: 44 | J137: =INDEX('PM 60-64'!$A$2:$E$107,I137+1,4) -> 0.005283595734 | K137: 8974 | L137: -748 | M137: 10892 | O137: 1342425.004 | P137: 1356521.765
A138: 112 | B138: 2020-09-01 | C138: 2020-09-01 | D138: 12000 | E138: 0 | F138: 0 | G138: 360 | H138: 11640 | I138: 44 | J138: =INDEX('PM 60-64'!$A$2:$E$107,I138+1,4) -> 0.005283595734 | K138: 8974 | L138: -748 | M138: 10892 | O138: 1356521.765 | P138: 1370651.909
A139: 113 | B139: 2020-10-01 | C139: 2020-10-01 | D139: 12000 | E139: 0 | F139: 0 | G139: 360 | H139: 11640 | I139: 44 | J139: =INDEX('PM 60-64'!$A$2:$E$107,I139+1,4) -> 0.005283595734 | K139: 8974 | L139: -748 | M139: 10892 | O139: 1370651.909 | P139: 1384815.514
A140: 114 | B140: 2020-11-01 | C140: 2020-11-01 | D140: 12000 | E140: 0 | F140: 0 | G140: 360 | H140: 11640 | I140: 44 | J140: =INDEX('PM 60-64'!$A$2:$E$107,I140+1,4) -> 0.005283595734 | K140: 8974 | L140: -748 | M140: 10892 | O140: 1384815.514 | P140: 1399012.66
A141: 115 | B141: 2020-12-01 | C141: 2020-12-01 | D141: 12000 | E141: 0 | F141: 0 | G141: 360 | H141: 11640 | I141: 45 | J141: =INDEX('PM 60-64'!$A$2:$E$107,I141+1,4) -> 0.005736324094 | K141: 9743 | L141: -812 | M141: 10828 | O141: 1399012.66 | P141: 1413179.274
A142: 116 | B142: 2021-01-01 | C142: 2021-01-01 | D142: 12000 | E142: 0 | F142: 0 | G142: 360 | H142: 11640 | I142: 45 | J142: =INDEX('PM 60-64'!$A$2:$E$107,I142+1,4) -> 0.005736324094 | K142: 9743 | L142: -812 | M142: 10828 | O142: 1413179.274 | P142: 1427379.436
A143: 117 | B143: 2021-02-01 | C143: 2021-02-01 | D143: 12000 | E143: 0 | F143: 0 | G143: 360 | H143: 11640 | I143: 45 | J143: =INDEX('PM 60-64'!$A$2:$E$107,I143+1,4) -> 0.005736324094 | K143: 9743 | L143: -812 | M143: 10828 | O143: 1427379.436 | P143: 1441613.225
A144: 118 | B144: 2021-03-01 | C144: 2021-03-01 | D144: 12000 | E144: 0 | F144: 0 | G144: 360 | H144: 11640 | I144: 45 | J144: =INDEX('PM 60-64'!$A$2:$E$107,I144+1,4) -> 0.005736324094 | K144: 9743 | L144: -812 | M144: 10828 | O144: 1441613.225 | P144: 1455880.72
A145: 119 | B145: 2021-04-01 | C145: 2021-04-01 | D145: 12000 | E145: 0 | F145: 0 | G145: 360 | H145: 11640 | I145: 45 | J145: =INDEX('PM 60-64'!$A$2:$E$107,I145+1,4) -> 0.005736324094 | K145: 9743 | L145: -812 | M145: 10828 | O145: 1455880.72 | P145: 1470182.002
A146: 120 | B146: 2021-05-01 | C146: 2021-05-01 | D146: 12000 | E146: 0 | F146: 0 | G146: 360 | H146: 11640 | I146: 45 | J146: =INDEX('PM 60-64'!$A$2:$E$107,I146+1,4) -> 0.005736324094 | K146: 9743 | L146: -812 | M146: 10828 | O146: 1470182.002 | P146: 1484517.151
A147: 121 | B147: 2021-06-01 | C147: 2021-06-01 | D147: 12000 | E147: 0 | F147: 0 | G147: 360 | H147: 11640 | I147: 45 | J147: =INDEX('PM 60-64'!$A$2:$E$107,I147+1,4) -> 0.005736324094 | K147: 9743 | L147: -812 | M147: 10828 | O147: 1484517.151 | P147: 1498886.247
A148: 122 | B148: 2021-07-01 | C148: 2021-07-01 | D148: 12000 | E148: 0 | F148: 0 | G148: 360 | H148: 11640 | I148: 45 | J148: =INDEX('PM 60-64'!$A$2:$E$107,I148+1,4) -> 0.005736324094 | K148: 9743 | L148: -812 | M148: 10828 | O148: 1498886.247 | P148: 1513289.369
A149: 123 | B149: 2021-08-01 | C149: 2021-08-01 | D149: 12000 | E149: 0 | F149: 0 | G149: 360 | H149: 11640 | I149: 45 | J149: =INDEX('PM 60-64'!$A$2:$E$107,I149+1,4) -> 0.005736324094 | K149: 9743 | L149: -812 | M149: 10828 | O149: 1513289.369 | P149: 1527726.6
A150: 124 | B150: 2021-09-01 | C150: 2021-09-01 | D150: 12000 | E150: 0 | F150: 0 | G150: 360 | H150: 11640 | I150: 45 | J150: =INDEX('PM 60-64'!$A$2:$E$107,I150+1,4) -> 0.005736324094 | K150: 9743 | L150: -812 | M150: 10828 | O150: 1527726.6 | P150: 1542198.018
A151: 125 | B151: 2021-10-01 | C151: 2021-10-01 | D151: 12000 | E151: 0 | F151: 0 | G151: 360 | H151: 11640 | I151: 45 | J151: =INDEX('PM 60-64'!$A$2:$E$107,I151+1,4) -> 0.005736324094 | K151: 9743 | L151: -812 | M151: 10828 | O151: 1542198.018 | P151: 1556703.707
A152: 126 | B152: 2021-11-01 | C152: 2021-11-01 | D152: 12000 | E152: 0 | F152: 0 | G152: 360 | H152: 11640 | I152: 45 | J152: =INDEX('PM 60-64'!$A$2:$E$107,I152+1,4) -> 0.005736324094 | K152: 9743 | L152: -812 | M152: 10828 | O152: 1556703.707 | P152: 1571243.746
A153: 127 | B153: 2021-12-01 | C153: 2021-12-01 | D153: 12000 | E153: 0 | F153: 0 | G153: 360 | H153: 11640 | I153: 46 | J153: =INDEX('PM 60-64'!$A$2:$E$107,I153+1,4) -> 0.006229586397 | K153: 10581 | L153: -882 | M153: 10758 | O153: 1571243.746 | P153: 1585748.051
A154: 128 | B154: 2022-01-01 | C154: 2022-01-01 | D154: 12000 | E154: 0 | F154: 0 | G154: 360 | H154: 11640 | I154: 46 | J154: =INDEX('PM 60-64'!$A$2:$E$107,I154+1,4) -> 0.006229586397 | K154: 10581 | L154: -882 | M154: 10758 | O154: 1585748.051 | P154: 1600286.703
A155: 129 | B155: 2022-02-01 | C155: 2022-02-01 | D155: =$F$7 -> 12000 | E155: 0 | F155: 0 | G155: 360 | H155: =ROUND(D155-E155-F155-G155,1) -> 11640 | I155: =INT(YEAR(C155)-YEAR($P$4)+$N$2+(MONTH(C155)-MONTH($P$4))/12) -> 46 | J155: =INDEX('PM 60-64'!$A$2:$E$107,I155+1,4) -> 0.006229586397 | K155: =ROUND((J155*(1+$P$5)*(1+$C$6)^(-0.5)+$P$8)*(1+$L$7)*$P$7,0) -> 10581 | L155: =ROUND(-K155*(1+$L$4)/12,0) -> -882 | M155: =H155+L155 -> 10758 | O155: 1600286.703 | P155: 1614859.784
A156: 130 | B156: 2022-03-01 | C156: =B156 -> 2022-03-01 | D156: 12000 | E156: =IF($H$6="O",IF(12*(YEAR(C156)-YEAR($I$1))+MONTH(C156)-MONTH($I$1)+1>12,0,D156*$H$4*MIN($H$5,$N$1)),D156*$H$4) -> 0 | F156: =IF($L$8="Ppure",IF((12*YEAR(C156)+MONTH(C156))-(12*YEAR($P$6)+MONTH($P$6))>1,0,ROUND((D156-E156)*$L$4/(1+$L$4+$L$5),0)),D156*$L$4) -> 0 | G156: =IF($L$8="Ppure",IF((12*YEAR(C156)+MONTH(C156))-(12*YEAR($P$6)+MONTH($P$6))>1,0,ROUND((D156-E156)*$L$5/(1+$L$4+$L$5),0)),D156*$L$5) -> 360 | H156: 11640 | I156: 46 | J156: =INDEX('PM 60-64'!$A$2:$E$107,I156+1,4) -> 0.006229586397 | K156: 10581 | L156: -882 | M156: 10758 | O156: 1614859.784 | P156: =(O156+M156)*(1+$C$8) -> 1629467.376
A157: 131 | B157: =DATE(YEAR(B156),MONTH(B156)+1,DAY(B156)) -> 2022-04-01 | C157: 2022-04-01 | D157: 12000 | E157: 0 | F157: 0 | G157: 360 | H157: 11640 | I157: 46 | J157: =INDEX('PM 60-64'!$A$2:$E$107,I157+1,4) -> 0.006229586397 | K157: 10581 | L157: -882 | M157: 10758 | O157: =P156 -> 1629467.376 | P157: 1644109.559
A158: 132 | B158: 2022-05-01 | C158: 2022-05-01 | D158: 12000 | E158: 0 | F158: 0 | G158: 360 | H158: 11640 | I158: 46 | J158: =INDEX('PM 60-64'!$A$2:$E$107,I158+1,4) -> 0.006229586397 | K158: 10581 | L158: -882 | M158: 10758 | O158: 1644109.559 | P158: 1658786.416
A159: 133 | B159: 2022-06-01 | C159: 2022-06-01 | D159: 12000 | E159: 0 | F159: 0 | G159: 360 | H159: 11640 | I159: 46 | J159: =INDEX('PM 60-64'!$A$2:$E$107,I159+1,4) -> 0.006229586397 | K159: 10581 | L159: -882 | M159: 10758 | O159: 1658786.416 | P159: 1673498.029
A160: 134 | B160: 2022-07-01 | C160: 2022-07-01 | D160: 12000 | E160: 0 | F160: 0 | G160: 360 | H160: 11640 | I160: 46 | J160: =INDEX('PM 60-64'!$A$2:$E$107,I160+1,4) -> 0.006229586397 | K160: 10581 | L160: -882 | M160: 10758 | O160: 1673498.029 | P160: 1688244.481
A161: 135 | B161: 2022-08-01 | C161: 2022-08-01 | D161: 12000 | E161: 0 | F161: 0 | G161: 360 | H161: 11640 | I161: 46 | J161: =INDEX('PM 60-64'!$A$2:$E$107,I161+1,4) -> 0.006229586397 | K161: 10581 | L161: -882 | M161: 10758 | O161: 1688244.481 | P161: 1703025.853
A162: 136 | B162: 2022-09-01 | C162: 2022-09-01 | D162: 12000 | E162: 0 | F162: 0 | G162: 360 | H162: 11640 | I162: 46 | J162: =INDEX('PM 60-64'!$A$2:$E$107,I162+1,4) -> 0.006229586397 | K162: 10581 | L162: -882 | M162: 10758 | O162: 1703025.853 | P162: 1717842.228
A163: 137 | B163: 2022-10-01 | C163: 2022-10-01 | D163: 12000 | E163: 0 | F163: 0 | G163: 360 | H163: 11640 | I163: 46 | J163: =INDEX('PM 60-64'!$A$2:$E$107,I163+1,4) -> 0.006229586397 | K163: 10581 | L163: -882 | M163: 10758 | O163: 1717842.228 | P163: 1732693.69
A164: 138 | B164: 2022-11-01 | C164: 2022-11-01 | D164: 12000 | E164: 0 | F164: 0 | G164: 360 | H164: 11640 | I164: 46 | J164: =INDEX('PM 60-64'!$A$2:$E$107,I164+1,4) -> 0.006229586397 | K164: 10581 | L164: -882 | M164: 10758 | O164: 1732693.69 | P164: 1747580.322
A165: 139 | B165: 2022-12-01 | C165: 2022-12-01 | D165: 12000 | E165: 0 | F165: 0 | G165: 360 | H165: 11640 | I165: 47 | J165: =INDEX('PM 60-64'!$A$2:$E$107,I165+1,4) -> 0.006771091754 | K165: 11501 | L165: -958 | M165: 10682 | O165: 1747580.322 | P165: 1762426.026
A166: 140 | B166: 2023-01-01 | C166: 2023-01-01 | D166: 12000 | E166: 0 | F166: 0 | G166: 360 | H166: 11640 | I166: 47 | J166: =INDEX('PM 60-64'!$A$2:$E$107,I166+1,4) -> 0.006771091754 | K166: 11501 | L166: -958 | M166: 10682 | O166: 1762426.026 | P166: 1777306.886
A167: 141 | B167: 2023-02-01 | C167: 2023-02-01 | D167: 12000 | E167: 0 | F167: 0 | G167: 360 | H167: 11640 | I167: 47 | J167: =INDEX('PM 60-64'!$A$2:$E$107,I167+1,4) -> 0.006771091754 | K167: 11501 | L167: -958 | M167: 10682 | O167: 1777306.886 | P167: 1792222.985
A168: 142 | B168: 2023-03-01 | C168: 2023-03-01 | D168: 12000 | E168: 0 | F168: 0 | G168: 360 | H168: 11640 | I168: 47 | J168: =INDEX('PM 60-64'!$A$2:$E$107,I168+1,4) -> 0.006771091754 | K168: 11501 | L168: -958 | M168: 10682 | O168: 1792222.985 | P168: 1807174.406
A169: 143 | B169: 2023-04-01 | C169: 2023-04-01 | D169: 12000 | E169: 0 | F169: 0 | G169: 360 | H169: 11640 | I169: 47 | J169: =INDEX('PM 60-64'!$A$2:$E$107,I169+1,4) -> 0.006771091754 | K169: 11501 | L169: -958 | M169: 10682 | O169: 1807174.406 | P169: 1822161.234
A170: 144 | B170: 2023-05-01 | C170: 2023-05-01 | D170: 12000 | E170: 0 | F170: 0 | G170: 360 | H170: 11640 | I170: 47 | J170: =INDEX('PM 60-64'!$A$2:$E$107,I170+1,4) -> 0.006771091754 | K170: 11501 | L170: -958 | M170: 10682 | O170: 1822161.234 | P170: 1837183.551
A171: 145 | B171: 2023-06-01 | C171: 2023-06-01 | D171: 12000 | E171: 0 | F171: 0 | G171: 360 | H171: 11640 | I171: 47 | J171: =INDEX('PM 60-64'!$A$2:$E$107,I171+1,4) -> 0.006771091754 | K171: 11501 | L171: -958 | M171: 10682 | O171: 1837183.551 | P171: 1852241.443
A172: 146 | B172: 2023-07-01 | C172: 2023-07-01 | D172: 12000 | E172: 0 | F172: 0 | G172: 360 | H172: 11640 | I172: 47 | J172: =INDEX('PM 60-64'!$A$2:$E$107,I172+1,4) -> 0.006771091754 | K172: 11501 | L172: -958 | M172: 10682 | O172: 1852241.443 | P172: 1867334.993
A173: 147 | B173: 2023-08-01 | C173: 2023-08-01 | D173: 12000 | E173: 0 | F173: 0 | G173: 360 | H173: 11640 | I173: 47 | J173: =INDEX('PM 60-64'!$A$2:$E$107,I173+1,4) -> 0.006771091754 | K173: 11501 | L173: -958 | M173: 10682 | O173: 1867334.993 | P173: 1882464.285
A174: 148 | B174: 2023-09-01 | C174: 2023-09-01 | D174: 12000 | E174: 0 | F174: 0 | G174: 360 | H174: 11640 | I174: 47 | J174: =INDEX('PM 60-64'!$A$2:$E$107,I174+1,4) -> 0.006771091754 | K174: 11501 | L174: -958 | M174: 10682 | O174: 1882464.285 | P174: 1897629.405
A175: 149 | B175: 2023-10-01 | C175: 2023-10-01 | D175: 12000 | E175: 0 | F175: 0 | G175: 360 | H175: 11640 | I175: 47 | J175: =INDEX('PM 60-64'!$A$2:$E$107,I175+1,4) -> 0.006771091754 | K175: 11501 | L175: -958 | M175: 10682 | O175: 1897629.405 | P175: 1912830.438
A176: 150 | B176: 2023-11-01 | C176: 2023-11-01 | D176: 12000 | E176: 0 | F176: 0 | G176: 360 | H176: 11640 | I176: 47 | J176: =INDEX('PM 60-64'!$A$2:$E$107,I176+1,4) -> 0.006771091754 | K176: 11501 | L176: -958 | M176: 10682 | O176: 1912830.438 | P176: 1928067.467
A177: 151 | B177: 2023-12-01 | C177: 2023-12-01 | D177: 12000 | E177: 0 | F177: 0 | G177: 360 | H177: 11640 | I177: 48 | J177: =INDEX('PM 60-64'!$A$2:$E$107,I177+1,4) -> 0.00735770548 | K177: 12497 | L177: -1041 | M177: 10599 | O177: 1928067.467 | P177: 1943257.382
A178: 152 | B178: 2024-01-01 | C178: 2024-01-01 | D178: 12000 | E178: 0 | F178: 0 | G178: 360 | H178: 11640 | I178: 48 | J178: =INDEX('PM 60-64'!$A$2:$E$107,I178+1,4) -> 0.00735770548 | K178: 12497 | L178: -1041 | M178: 10599 | O178: 1943257.382 | P178: 1958483.269
A179: 153 | B179: 2024-02-01 | C179: 2024-02-01 | D179: 12000 | E179: 0 | F179: 0 | G179: 360 | H179: 11640 | I179: 48 | J179: =INDEX('PM 60-64'!$A$2:$E$107,I179+1,4) -> 0.00735770548 | K179: 12497 | L179: -1041 | M179: 10599 | O179: 1958483.269 | P179: 1973745.211
A180: 154 | B180: 2024-03-01 | C180: 2024-03-01 | D180: 12000 | E180: 0 | F180: 0 | G180: 360 | H180: 11640 | I180: 48 | J180: =INDEX('PM 60-64'!$A$2:$E$107,I180+1,4) -> 0.00735770548 | K180: 12497 | L180: -1041 | M180: 10599 | O180: 1973745.211 | P180: 1989043.295
A181: 155 | B181: 2024-04-01 | C181: 2024-04-01 | D181: 12000 | E181: 0 | F181: 0 | G181: 360 | H181: 11640 | I181: 48 | J181: =INDEX('PM 60-64'!$A$2:$E$107,I181+1,4) -> 0.00735770548 | K181: 12497 | L181: -1041 | M181: 10599 | O181: 1989043.295 | P181: 2004377.606
A182: 156 | B182: 2024-05-01 | C182: 2024-05-01 | D182: 12000 | E182: 0 | F182: 0 | G182: 360 | H182: 11640 | I182: 48 | J182: =INDEX('PM 60-64'!$A$2:$E$107,I182+1,4) -> 0.00735770548 | K182: 12497 | L182: -1041 | M182: 10599 | O182: 2004377.606 | P182: 2019748.23
A183: 157 | B183: 2024-06-01 | C183: 2024-06-01 | D183: 12000 | E183: 0 | F183: 0 | G183: 360 | H183: 11640 | I183: 48 | J183: =INDEX('PM 60-64'!$A$2:$E$107,I183+1,4) -> 0.00735770548 | K183: 12497 | L183: -1041 | M183: 10599 | O183: 2019748.23 | P183: 2035155.252
A184: 158 | B184: 2024-07-01 | C184: 2024-07-01 | D184: 12000 | E184: 0 | F184: 0 | G184: 360 | H184: 11640 | I184: 48 | J184: =INDEX('PM 60-64'!$A$2:$E$107,I184+1,4) -> 0.00735770548 | K184: 12497 | L184: -1041 | M184: 10599 | O184: 2035155.252 | P184: 2050598.76
A185: 159 | B185: 2024-08-01 | C185: 2024-08-01 | D185: 12000 | E185: 0 | F185: 0 | G185: 360 | H185: 11640 | I185: 48 | J185: =INDEX('PM 60-64'!$A$2:$E$107,I185+1,4) -> 0.00735770548 | K185: 12497 | L185: -1041 | M185: 10599 | O185: 2050598.76 | P185: 2066078.839
A186: 160 | B186: 2024-09-01 | C186: 2024-09-01 | D186: 12000 | E186: 0 | F186: 0 | G186: 360 | H186: 11640 | I186: 48 | J186: =INDEX('PM 60-64'!$A$2:$E$107,I186+1,4) -> 0.00735770548 | K186: 12497 | L186: -1041 | M186: 10599 | O186: 2066078.839 | P186: 2081595.577
A187: 161 | B187: 2024-10-01 | C187: 2024-10-01 | D187: 12000 | E187: 0 | F187: 0 | G187: 360 | H187: 11640 | I187: 48 | J187: =INDEX('PM 60-64'!$A$2:$E$107,I187+1,4) -> 0.00735770548 | K187: 12497 | L187: -1041 | M187: 10599 | O187: 2081595.577 | P187: 2097149.059
A188: 162 | B188: 2024-11-01 | C188: 2024-11-01 | D188: 12000 | E188: 0 | F188: 0 | G188: 360 | H188: 11640 | I188: 48 | J188: =INDEX('PM 60-64'!$A$2:$E$107,I188+1,4) -> 0.00735770548 | K188: 12497 | L188: -1041 | M188: 10599 | O188: 2097149.059 | P188: 2112739.373
A189: 163 | B189: 2024-12-01 | C189: 2024-12-01 | D189: 12000 | E189: 0 | F189: 0 | G189: 360 | H189: 11640 | I189: 49 | J189: =INDEX('PM 60-64'!$A$2:$E$107,I189+1,4) -> 0.00799628245 | K189: 13582 | L189: -1132 | M189: 10508 | O189: 2112739.373 | P189: 2128275.39
A190: 164 | B190: 2025-01-01 | C190: 2025-01-01 | D190: 12000 | E190: 0 | F190: 0 | G190: 360 | H190: 11640 | I190: 49 | J190: =INDEX('PM 60-64'!$A$2:$E$107,I190+1,4) -> 0.00799628245 | K190: 13582 | L190: -1132 | M190: 10508 | O190: 2128275.39 | P190: 2143848.198
A191: 165 | B191: 2025-02-01 | C191: 2025-02-01 | D191: 12000 | E191: 0 | F191: 0 | G191: 360 | H191: 11640 | I191: 49 | J191: =INDEX('PM 60-64'!$A$2:$E$107,I191+1,4) -> 0.00799628245 | K191: 13582 | L191: -1132 | M191: 10508 | O191: 2143848.198 | P191: 2159457.884
A192: 166 | B192: 2025-03-01 | C192: 2025-03-01 | D192: 12000 | E192: 0 | F192: 0 | G192: 360 | H192: 11640 | I192: 49 | J192: =INDEX('PM 60-64'!$A$2:$E$107,I192+1,4) -> 0.00799628245 | K192: 13582 | L192: -1132 | M192: 10508 | O192: 2159457.884 | P192: 2175104.534
A193: 167 | B193: 2025-04-01 | C193: 2025-04-01 | D193: 12000 | E193: 0 | F193: 0 | G193: 360 | H193: 11640 | I193: 49 | J193: =INDEX('PM 60-64'!$A$2:$E$107,I193+1,4) -> 0.00799628245 | K193: 13582 | L193: -1132 | M193: 10508 | O193: 2175104.534 | P193: 2190788.238
A194: 168 | B194: 2025-05-01 | C194: 2025-05-01 | D194: 12000 | E194: 0 | F194: 0 | G194: 360 | H194: 11640 | I194: 49 | J194: =INDEX('PM 60-64'!$A$2:$E$107,I194+1,4) -> 0.00799628245 | K194: 13582 | L194: -1132 | M194: 10508 | O194: 2190788.238 | P194: 2206509.081
A195: 169 | B195: 2025-06-01 | C195: 2025-06-01 | D195: 12000 | E195: 0 | F195: 0 | G195: 360 | H195: 11640 | I195: 49 | J195: =INDEX('PM 60-64'!$A$2:$E$107,I195+1,4) -> 0.00799628245 | K195: 13582 | L195: -1132 | M195: 10508 | O195: 2206509.081 | P195: 2222267.153
A196: 170 | B196: 2025-07-01 | C196: 2025-07-01 | D196: 12000 | E196: 0 | F196: 0 | G196: 360 | H196: 11640 | I196: 49 | J196: =INDEX('PM 60-64'!$A$2:$E$107,I196+1,4) -> 0.00799628245 | K196: 13582 | L196: -1132 | M196: 10508 | O196: 2222267.153 | P196: 2238062.541
A197: 171 | B197: 2025-08-01 | C197: 2025-08-01 | D197: 12000 | E197: 0 | F197: 0 | G197: 360 | H197: 11640 | I197: 49 | J197: =INDEX('PM 60-64'!$A$2:$E$107,I197+1,4) -> 0.00799628245 | K197: 13582 | L197: -1132 | M197: 10508 | O197: 2238062.541 | P197: 2253895.333
A198: 172 | B198: 2025-09-01 | C198: 2025-09-01 | D198: 12000 | E198: 0 | F198: 0 | G198: 360 | H198: 11640 | I198: 49 | J198: =INDEX('PM 60-64'!$A$2:$E$107,I198+1,4) -> 0.00799628245 | K198: 13582 | L198: -1132 | M198: 10508 | O198: 2253895.333 | P198: 2269765.619
A199: 173 | B199: 2025-10-01 | C199: 2025-10-01 | D199: 12000 | E199: 0 | F199: 0 | G199: 360 | H199: 11640 | I199: 49 | J199: =INDEX('PM 60-64'!$A$2:$E$107,I199+1,4) -> 0.00799628245 | K199: 13582 | L199: -1132 | M199: 10508 | O199: 2269765.619 | P199: 2285673.488
A200: 174 | B200: 2025-11-01 | C200: 2025-11-01 | D200: 12000 | E200: 0 | F200: 0 | G200: 360 | H200: 11640 | I200: 49 | J200: =INDEX('PM 60-64'!$A$2:$E$107,I200+1,4) -> 0.00799628245 | K200: 13582 | L200: -1132 | M200: 10508 | O200: 2285673.488 | P200: 2301619.027
A201: 175 | B201: 2025-12-01 | C201: 2025-12-01 | D201: 12000 | E201: 0 | F201: 0 | G201: 360 | H201: 11640 | I201: 50 | J201: =INDEX('PM 60-64'!$A$2:$E$107,I201+1,4) -> 0.008690641955 | K201: 14761 | L201: -1230 | M201: 10410 | O201: 2301619.027 | P201: 2317504.094
A202: 176 | B202: 2026-01-01 | C202: 2026-01-01 | D202: 12000 | E202: 0 | F202: 0 | G202: 360 | H202: 11640 | I202: 50 | J202: =INDEX('PM 60-64'!$A$2:$E$107,I202+1,4) -> 0.008690641955 | K202: 14761 | L202: -1230 | M202: 10410 | O202: 2317504.094 | P202: 2333426.779
A203: 177 | B203: 2026-02-01 | C203: 2026-02-01 | D203: 12000 | E203: 0 | F203: 0 | G203: 360 | H203: 11640 | I203: 50 | J203: =INDEX('PM 60-64'!$A$2:$E$107,I203+1,4) -> 0.008690641955 | K203: 14761 | L203: -1230 | M203: 10410 | O203: 2333426.779 | P203: 2349387.169
A204: 178 | B204: 2026-03-01 | C204: 2026-03-01 | D204: 12000 | E204: 0 | F204: 0 | G204: 360 | H204: 11640 | I204: 50 | J204: =INDEX('PM 60-64'!$A$2:$E$107,I204+1,4) -> 0.008690641955 | K204: 14761 | L204: -1230 | M204: 10410 | O204: 2349387.169 | P204: 2365385.355
A205: 179 | B205: 2026-04-01 | C205: 2026-04-01 | D205: 12000 | E205: 0 | F205: 0 | G205: 360 | H205: 11640 | I205: 50 | J205: =INDEX('PM 60-64'!$A$2:$E$107,I205+1,4) -> 0.008690641955 | K205: 14761 | L205: -1230 | M205: 10410 | O205: 2365385.355 | P205: 2381421.427
A206: 180 | B206: 2026-05-01 | C206: 2026-05-01 | D206: 12000 | E206: 0 | F206: 0 | G206: 360 | H206: 11640 | I206: 50 | J206: =INDEX('PM 60-64'!$A$2:$E$107,I206+1,4) -> 0.008690641955 | K206: 14761 | L206: -1230 | M206: 10410 | O206: 2381421.427 | P206: 2397495.472
D207: =SUM(D27:D206) -> 2160000

Sheet PM 60-64 (hidden)
A1: X | B1: lx | C1: dx | D1: qx | E1: px | F1: Cx | G1: Mx | H1: Dx | I1: Nx
A2: 0 | B2: 1000000 | C2: 24280 | D2: =C2/B2 -> 0.02428 | E2: =B3/B2 -> 0.994632 | F2: =C2*1.035^(-0.5-A2) -> 23865.93797 | G2: =SUM(F2:$F$107) -> 133120.9086 | H2: =B2/(1.035^A2) -> 1000000 | I2: =SUM(H2:H$107) -> 26565816.05
A3: 1 | B3: 994632 | C3: 2220 | D3: 0.002231981275 | E3: 0.9992700818 | F3: =C3*1.035^(-0.5-A3) -> 2108.348745 | G3: =SUM(F3:$F$107) -> 109254.9706 | H3: =B3/(1.035^A3) -> 960997.1014 | I3: =SUM(H3:H$107) -> 25565816.05
A4: 2 | B4: 993906 | C4: 1100 | D4: 0.001106744501 | E4: 0.9994415971 | F4: =C4*1.035^(-0.5-A4) -> 1009.350054 | G4: =SUM(F4:$F$107) -> 107146.6219 | H4: 927821.8862 | I4: =SUM(H4:H$107) -> 24604818.95
A5: 3 | B5: 993351 | C5: 750 | D5: 0.0007550201288 | E5: 0.999523834 | F5: 664.9209843 | G5: =SUM(F5:$F$107) -> 106137.2718 | H5: 895945.6886 | I5: =SUM(H5:H$107) -> 23676997.06
A6: 4 | B6: 992878 | C6: 610 | D6: 0.0006143755829 | E6: 0.9995931021 | F6: 522.5143967 | G6: =SUM(F6:$F$107) -> 105472.3508 | H6: 865235.8162 | I6: =SUM(H6:H$107) -> 22781051.37
A7: 5 | B7: 992474 | C7: 530 | D7: 0.0005340190272 | E7: 0.9996282018 | F7: 438.63567 | G7: =SUM(F7:$F$107) -> 104949.8364 | H7: 835636.4768 | I7: =SUM(H7:H$107) -> 21915815.56
A8: 6 | B8: 992105 | C8: 470 | D8: 0.0004737401787 | E8: 0.999665358 | F8: 375.8249292 | G8: =SUM(F8:$F$107) -> 104511.2008 | H8: 807078.0567 | I8: =SUM(H8:H$107) -> 21080179.08
A9: 7 | B9: 991773 | C9: 440 | D9: 0.0004436499078 | E9: 0.9996844036 | F9: 339.9382646 | G9: =SUM(F9:$F$107) -> 104135.3758 | H9: 779524.6131 | I9: =SUM(H9:H$107) -> 20273101.02
A10: 8 | B10: 991460 | C10: 410 | D10: 0.0004135315595 | E10: 0.999684304 | F10: 306.0489427 | G10: =SUM(F10:$F$107) -> 103795.4376 | H10: 752926.1815 | I10: =SUM(H10:H$107) -> 19493576.41
A11: 9 | B11: 991147 | C11: 390 | D11: 0.0003934835095 | E11: 0.999703374 | F11: 281.2750976 | G11: =SUM(F11:$F$107) -> 103489.3886 | H11: 727235.2519 | I11: =SUM(H11:H$107) -> 18740650.23
A12: 10 | B12: 990853 | C12: 380 | D12: 0.0003835079472 | E12: 0.9996851198 | F12: 264.7950875 | G12: =SUM(F12:$F$107) -> 103208.1135 | H12: 702434.3333 | I12: =SUM(H12:H$107) -> 18013414.98
A13: 11 | B13: 990541 | C13: 379 | D13: 0.000382619195 | E13: 0.9996840111 | F13: 255.1673994 | G13: =SUM(F13:$F$107) -> 102943.3185 | H13: 678466.8122 | I13: =SUM(H13:H$107) -> 17310980.64
A14: 12 | B14: 990228 | C14: 390 | D14: 0.0003938486894 | E14: 0.9996283684 | F14: 253.6940225 | G14: =SUM(F14:$F$107) -> 102688.1511 | H14: 655316.3519 | I14: =SUM(H14:H$107) -> 16632513.83
A15: 13 | B15: 989860 | C15: 430 | D15: 0.0004344048653 | E15: 0.9995575132 | F15: 270.2549974 | G15: =SUM(F15:$F$107) -> 102434.457 | H15: 632920.5948 | I15: =SUM(H15:H$107) -> 15977197.48
A16: 14 | B16: 989422 | C16: 510 | D16: 0.0005154524561 | E16: 0.9994562482 | F16: =C16*1.035^(-0.5-A16) -> 309.6956492 | G16: =SUM(F16:$F$107) -> 102164.202 | H16: 611246.8945 | I16: =SUM(H16:H$107) -> 15344276.88
A17: 15 | B17: 988884 | C17: 649 | D17: 0.0006562953794 | E17: 0.9992840414 | F17: 380.7757437 | G17: =SUM(F17:$F$107) -> 101854.5064 | H17: 590255.5825 | I17: =SUM(H17:H$107) -> 14733029.99
A18: 16 | B18: 988176 | C18: 800 | D18: 0.0008095723839 | E18: 0.999092267 | F18: 453.496788 | G18: =SUM(F18:$F$107) -> 101473.7306 | H18: 569886.941 | I18: =SUM(H18:H$107) -> 14142774.41
A19: 17 | B19: 987279 | C19: 970 | D19: 0.0009824983617 | E19: 0.9988726591 | F19: 531.2703917 | G19: =SUM(F19:$F$107) -> 101020.2339 | H19: 550115.5902 | I19: =SUM(H19:H$107) -> 13572887.47
A20: 18 | B20: 986166 | C20: 1110 | D20: 0.001125571151 | E20: 0.998663511 | F20: 587.3899445 | G20: =SUM(F20:$F$107) -> 100488.9635 | H20: 530913.4515 | I20: =SUM(H20:H$107) -> 13022771.88
A21: 19 | B21: 984848 | C21: 1221 | D21: 0.001239785226 | E21: 0.9985114454 | F21: 624.2791681 | G21: =SUM(F21:$F$107) -> 99901.57352 | H21: 512274.2914 | I21: =SUM(H21:H$107) -> 12491858.42
A22: 20 | B22: 983382 | C22: 1299 | D22: 0.001320951573 | E22: 0.998421773 | F22: 641.6999129 | G22: =SUM(F22:$F$107) -> 99277.29435 | H22: 494214.2446 | I22: =SUM(H22:H$107) -> 11979584.13
A23: 21 | B23: 981830 | C23: 1370 | D23: 0.001395353574 | E23: 0.9983673345 | F23: 653.8875171 | G23: =SUM(F23:$F$107) -> 98635.59444 | H23: 476748.0795 | I23: =SUM(H23:H$107) -> 11485369.89
A24: 22 | B24: 980227 | C24: 1420 | D24: 0.001448644039 | E24: 0.9983360997 | F24: 654.8328744 | G24: =SUM(F24:$F$107) -> 97981.70692 | H24: 459874.1153 | I24: =SUM(H24:H$107) -> 11008621.81
A25: 23 | B25: 978596 | C25: 1470 | D25: 0.001502152063 | E25: 0.9983108453 | F25: 654.966541 | G25: =SUM(F25:$F$107) -> 97326.87405 | H25: 443583.5079 | I25: =SUM(H25:H$107) -> 10548747.69
A26: 24 | B26: 976943 | C26: 1490 | D26: 0.001525165747 | E26: 0.9982793264 | F26: 641.4276816 | G26: =SUM(F26:$F$107) -> 96671.9075 | H26: 427859.1563 | I26: =SUM(H26:H$107) -> 10105164.19
A27: 25 | B27: 975262 | C27: 1530 | D27: 0.001568809202 | E27: 0.998246625 | F27: 636.3741224 | G27: =SUM(F27:$F$107) -> 96030.47982 | H27: 412679.179 | I27: =SUM(H27:H$107) -> 9677305.029
A28: 26 | B28: 973552 | C28: 1560 | D28: 0.001602379739 | E28: 0.9982004043 | F28: 626.9101897 | G28: =SUM(F28:$F$107) -> 95394.1057 | H28: 398024.7321 | I28: =SUM(H28:H$107) -> 9264625.85
A29: 27 | B29: 971800 | C29: 1580 | D29: 0.00162584894 | E29: 0.9981518831 | F29: 613.4758452 | G29: =SUM(F29:$F$107) -> 94767.19551 | H29: 383872.8971 | I29: =SUM(H29:H$107) -> 8866601.118
A30: 28 | B30: 970004 | C30: 1606 | D30: 0.001655663276 | E30: 0.9981051625 | F30: 602.4840747 | G30: =SUM(F30:$F$107) -> 94153.71967 | H30: 370206.2368 | I30: =SUM(H30:H$107) -> 8482728.221
A31: 29 | B31: 968166 | C31: 1646 | D31: 0.001700121673 | E31: 0.9980530198 | F31: 596.6086036 | G31: =SUM(F31:$F$107) -> 93551.23559 | H31: 357009.4262 | I31: =SUM(H31:H$107) -> 8112521.984
A32: 30 | B32: 966281 | C32: 1729 | D32: 0.001789334572 | E32: 0.9980057561 | F32: 605.5002469 | G32: =SUM(F32:$F$107) -> 92954.62699 | H32: 344265.0589 | I32: =SUM(H32:H$107) -> 7755512.558
A33: 31 | B33: 964354 | C33: 1853 | D33: 0.001921493559 | E33: 0.9979634035 | F33: 626.9810298 | G33: =SUM(F33:$F$107) -> 92349.12674 | H33: 331959.9134 | I33: =SUM(H33:H$107) -> 7411247.499
A34: 32 | B34: 962390 | C34: 1989 | D34: 0.002066729704 | E34: 0.9978927462 | F34: 650.2396001 | G34: =SUM(F34:$F$107) -> 91722.14571 | H34: 320081.0097 | I34: =SUM(H34:H$107) -> 7079287.586
A35: 33 | B35: 960362 | C35: 2136 | D35: 0.002224161306 | E35: 0.9977945816 | F35: 674.6826317 | G35: =SUM(F35:$F$107) -> 91071.90611 | H35: 308605.3311 | I35: =SUM(H35:H$107) -> 6759206.576
A36: 34 | B36: 958244 | C36: 2297 | D36: 0.002397093016 | E36: 0.9976582165 | F36: 701.0014678 | G36: =SUM(F36:$F$107) -> 90397.22348 | H36: 297511.8138 | I36: =SUM(H36:H$107) -> 6450601.245
A37: 35 | B37: 956000 | C37: 2471 | D37: 0.002584728033 | E37: 0.9975230126 | F37: 728.6019475 | G37: =SUM(F37:$F$107) -> 89696.22201 | H37: 286777.8797 | I37: =SUM(H37:H$107) -> 6153089.431
A38: 36 | B38: 953632 | C38: 2662 | D38: 0.002791433173 | E38: 0.9973616657 | F38: 758.3772277 | G38: =SUM(F38:$F$107) -> 88967.62006 | H38: 276393.7532 | I38: =SUM(H38:H$107) -> 5866311.551
A39: 37 | B39: 951116 | C39: 2868 | D39: 0.003015405061 | E39: 0.99719172 | F39: 789.4343685 | G39: =SUM(F39:$F$107) -> 88209.24284 | H39: 266342.545 | I39: =SUM(H39:H$107) -> 5589917.798
A40: 38 | B40: 948445 | C40: 3093 | D40: 0.003261127424 | E40: 0.9969961358 | F40: 822.5767934 | G40: =SUM(F40:$F$107) -> 87419.80847 | H40: 256613.1213 | I40: =SUM(H40:H$107) -> 5323575.253
A41: 39 | B41: 945596 | C41: 3336 | D41: 0.003527933705 | E41: 0.9967671183 | F41: 857.2001239 | G41: =SUM(F41:$F$107) -> 86597.23167 | H41: 247190.6187 | I41: =SUM(H41:H$107) -> 5066962.132 | K41: 9021
A42: 40 | B42: 942539 | C42: 3601 | D42: 0.003820531564 | E42: 0.9965030625 | F42: 894.0029559 | G42: =SUM(F42:$F$107) -> 85740.03155 | H42: 238059.4016 | I42: =SUM(H42:H$107) -> 4819771.513 | K42: =K45^(1/12) -> 1.002870899 | L42: =K41*K42 -> 9046.898377
A43: 41 | B43: 939243 | C43: 3888 | D43: 0.004139503834 | E43: 0.9961841611 | F43: 932.6135904 | G43: =SUM(F43:$F$107) -> 84846.02859 | H43: 229204.7563 | I43: =SUM(H43:H$107) -> 4581712.112 | K43: =(B42-B43)/B42 -> 0.003496937527
A44: 42 | B44: 935659 | C44: 4199 | D44: 0.00448774607 | E44: 0.9958563964 | F44: 973.152737 | G44: =SUM(F44:$F$107) -> 83913.415 | H44: 220608.8385 | I44: =SUM(H44:H$107) -> 4352507.355 | K44: 1200000
A45: 43 | B45: 931782 | C45: 4536 | D45: 0.004868091463 | E45: 0.9954989472 | F45: 1015.70556 | G45: =SUM(F45:$F$107) -> 82940.26227 | H45: 212265.4328 | I45: =SUM(H45:H$107) -> 4131898.517 | K45: 1.035 | Q45: 0.125
A46: 44 | B46: 927588 | C46: 4901 | D46: 0.005283595734 | E46: 0.9951239128 | F46: 1060.325331 | G46: =SUM(F46:$F$107) -> 81924.55671 | H46: 204164.2656 | I46: =SUM(H46:H$107) -> 3919633.084 | K46: =K45^(-0.5) -> 0.9829463744 | P46: =Q46*3 -> 1.47 | Q46: 0.49
A47: 45 | B47: 923065 | C47: 5295 | D47: 0.005736324094 | E47: 0.9947284319 | F47: 1106.827775 | G47: =SUM(F47:$F$107) -> 80864.23138 | H47: 196298.3022 | I47: =SUM(H47:H$107) -> 3715468.819 | K47: 1.2 | Q47: =Q46/Q45 -> 3.92
A48: 46 | B48: 918199 | C48: 5720 | D48: 0.006229586397 | E48: 0.9943367396 | F48: 1155.233471 | G48: =SUM(F48:$F$107) -> 79757.4036 | H48: 188660.3887 | I48: =SUM(H48:H$107) -> 3519170.516 | K48: 1.04
A49: 47 | B49: 912999 | C49: 6182 | D49: 0.006771091754 | E49: 0.9939594676 | F49: 1206.319604 | G49: =SUM(F49:$F$107) -> 78602.17013 | H49: 181248.2665 | I49: =SUM(H49:H$107) -> 3330510.128 | K49: =K43*K44*K46*K47*K48 -> 5147.703571 | L49: =K43*K44*K46*K47*K48 -> 5147.703571
A50: 48 | B50: 907484 | C50: 6677 | D50: 0.00735770548 | E50: 0.9935921735 | F50: 1258.851238 | G50: =SUM(F50:$F$107) -> 77395.85053 | H50: 174061.2855 | I50: =SUM(H50:H$107) -> 3149261.861
A51: 49 | B51: 901669 | C51: 7210 | D51: 0.00799628245 | E51: 0.9932258955 | F51: 1313.372595 | G51: =SUM(F51:$F$107) -> 76136.99929 | H51: 167097.5179 | I51: =SUM(H51:H$107) -> 2975200.576
A52: 50 | B52: 895561 | C52: 7783 | D52: 0.008690641955 | E52: 0.9928592246 | F52: 1369.806952 | G52: =SUM(F52:$F$107) -> 74823.62669 | H52: 160353.2191 | I52: =SUM(H52:H$107) -> 2808103.058
A53: 51 | B53: 889166 | C53: 8398 | D53: 0.009444805582 | E53: 0.9924603505 | F53: 1428.064608 | G53: =SUM(F53:$F$107) -> 73453.81974 | H53: 153824.3216 | I53: =SUM(H53:H$107) -> 2647749.839
A54: 52 | B54: 882462 | C54: 9057 | D54: 0.01026333145 | E54: 0.9920370509 | F54: 1488.04479 | G54: =SUM(F54:$F$107) -> 72025.75513 | H54: 147501.9711 | I54: =SUM(H54:H$107) -> 2493925.517
A55: 53 | B55: 875435 | C55: 9761 | D55: 0.01114988549 | E55: 0.9915938933 | F55: 1549.478658 | G55: =SUM(F55:$F$107) -> 70537.71034 | H55: 141379.1502 | I55: =SUM(H55:H$107) -> 2346423.546 | K55: =C55/B55 -> 0.01114988549
A56: 54 | B56: 868076 | C56: 10512 | D56: 0.0121095388 | E56: 0.9911171372 | F56: 1612.264489 | G56: =SUM(F56:$F$107) -> 68988.23169 | H56: 135449.9536 | I56: =SUM(H56:H$107) -> 2205044.396
A57: 55 | B57: 860365 | C57: 11310 | D57: 0.01314558356 | E57: 0.9906249092 | F57: 1675.996824 | G57: =SUM(F57:$F$107) -> 67375.9672 | H57: 129707.0244 | I57: =SUM(H57:H$107) -> 2069594.442
A58: 56 | B58: 852299 | C58: 12158 | D58: 0.01426494693 | E58: 0.9901149714 | F58: 1740.733855 | G58: =SUM(F58:$F$107) -> 65699.97037 | H58: 124145.9026 | I58: =SUM(H58:H$107) -> 1939887.418
A59: 57 | B59: 843874 | C59: 13054 | D59: 0.01546913402 | E59: 0.9894048164 | F59: 1805.815994 | G59: =SUM(F59:$F$107) -> 63959.23652 | H59: 118762.0453 | I59: =SUM(H59:H$107) -> 1815741.515
A60: 58 | B60: 834933 | C60: 14000 | D60: 0.01676781251 | E60: 0.9885847128 | F60: 1871.188643 | G60: =SUM(F60:$F$107) -> 62153.42052 | H60: 113530.1832 | I60: =SUM(H60:H$107) -> 1696979.47
A61: 59 | B61: 825402 | C61: 14992 | D61: 0.01816327075 | E61: 0.9875430396 | F61: 1936.015192 | G61: =SUM(F61:$F$107) -> 60282.23188 | H61: 108438.844 | I61: =SUM(H61:H$107) -> 1583449.287
A62: 60 | B62: 815120 | C62: 16029 | D62: 0.01966458926 | E62: 0.9864731573 | F62: 1999.932171 | G62: =SUM(F62:$F$107) -> 58346.21669 | H62: 103466.6914 | I62: =SUM(H62:H$107) -> 1475010.443
A63: 61 | B63: 804094 | C63: 17110 | D63: 0.02127860673 | E63: 0.985184568 | F63: 2062.616546 | G63: =SUM(F63:$F$107) -> 56346.28452 | H63: 98615.56883 | I63: =SUM(H63:H$107) -> 1371543.751
A64: 62 | B64: 792181 | C64: 18227 | D64: 0.0230086306 | E64: 0.9838534375 | F64: 2122.967431 | G64: =SUM(F64:$F$107) -> 54283.66797 | H64: 93869.11746 | I64: =SUM(H64:H$107) -> 1272928.183
A65: 63 | B65: 779390 | C65: 19377 | D65: 0.02486175086 | E65: 0.9824824542 | F65: 2180.591563 | G65: =SUM(F65:$F$107) -> 52160.70054 | H65: 89230.39023 | I65: =SUM(H65:H$107) -> 1179059.065
A66: 64 | B66: 765737 | C66: 20552 | D66: =C66/B66 -> 0.02683950234 | E66: =B67/B66 -> 0.9808720226 | F66: 2234.608928 | G66: =SUM(F66:$F$107) -> 49980.10898 | H66: 84702.69835 | I66: =SUM(H66:H$107) -> 1089828.675
A67: 65 | B67: 751090 | C67: 21741 | D67: 0.02894593191 | E67: 0.9792155401 | F67: 2283.950065 | G67: =SUM(F67:$F$107) -> 47745.50005 | H67: =B67/(1.035^A67) -> 80272.95367 | I67: =SUM(H67:H$107) -> 1005125.977
A68: 66 | B68: 735479 | C68: 22934 | D68: 0.0311823995 | E68: 0.9774595876 | F68: =C68*1.035^(-0.5-A68) -> 2327.804733 | G68: =SUM(F68:$F$107) -> 45461.54998 | H68: 75946.39969 | I68: =SUM(H68:H$107) -> 924853.0229
A69: 67 | B69: 718901 | C69: 24119 | D69: 0.03354982119 | E69: 0.9758367286 | F69: 2365.29703 | G69: =SUM(F69:$F$107) -> 43133.74525 | H69: 71724.18988 | I69: =SUM(H69:H$107) -> 848906.6232
A70: 68 | B70: 701530 | C70: 25278 | D70: 0.03603267145 | E70: 0.9740880647 | F70: 2395.128115 | G70: =SUM(F70:$F$107) -> 40768.44822 | H70: 67624.25006 | I70: =SUM(H70:H$107) -> 777182.4333
A71: 69 | B71: 683352 | C71: 26393 | D71: 0.03862284738 | E71: 0.9722119786 | F71: 2416.208719 | G71: =SUM(F71:$F$107) -> 38373.32011 | H71: 63644.42016 | I71: =SUM(H71:H$107) -> 709558.1832
A72: 70 | B72: 664363 | C72: 27446 | D72: 0.04131175276 | E72: 0.9701789534 | F72: 2427.640637 | G72: =SUM(F72:$F$107) -> 35957.11139 | H72: 59783.447 | I72: =SUM(H72:H$107) -> 645913.7631
A73: 71 | B73: 644551 | C73: 28412 | D73: 0.04408029776 | E73: 0.9679870173 | F73: 2428.101268 | G73: =SUM(F73:$F$107) -> 33529.47075 | H73: 56039.26767 | I73: =SUM(H73:H$107) -> 586130.3161
A74: 72 | B74: 623917 | C74: 29269 | D74: 0.04691168857 | E74: 0.965657291 | F74: 2416.754437 | G74: =SUM(F74:$F$107) -> 31101.36948 | H74: 52410.902 | I74: =SUM(H74:H$107) -> 530091.0484
A75: 73 | B75: 602490 | C75: 29989 | D75: 0.0497751 | E75: 0.9631744925 | F75: 2392.468753 | G75: =SUM(F75:$F$107) -> 28684.61505 | H75: 48899.48757 | I75: =SUM(H75:H$107) -> 477680.1464
A76: 74 | B76: 580303 | C76: 30547 | D76: 0.05263974165 | E76: 0.960501669 | F76: 2354.574874 | G76: =SUM(F76:$F$107) -> 26292.14629 | H76: 45506.02814 | I76: =SUM(H76:H$107) -> 428780.6588
A77: 75 | B77: 557382 | C77: 30914 | D77: 0.0554628603 | E77: 0.9575838473 | F77: 2302.283459 | G77: =SUM(F77:$F$107) -> 23937.57142 | H77: 42230.54684 | I77: =SUM(H77:H$107) -> 383274.6307
A78: 76 | B78: 533740 | C78: 31067 | D78: 0.05820624274 | E78: 0.9543766628 | F78: 2235.437635 | G78: =SUM(F78:$F$107) -> 21635.28796 | H78: 39071.77731 | I78: =SUM(H78:H$107) -> 341044.0839
A79: 77 | B79: 509389 | C79: 30980 | D79: 0.06081796034 | E79: 0.9508784053 | F79: 2153.794703 | G79: =SUM(F79:$F$107) -> 19399.85032 | H79: 36028.20526 | I79: =SUM(H79:H$107) -> 301972.3066
A80: 78 | B80: 484367 | C80: 30633 | D80: 0.06324336712 | E80: 0.9469988666 | F80: 2057.652689 | G80: =SUM(F80:$F$107) -> 17246.05562 | H80: 33099.94431 | I80: =SUM(H80:H$107) -> 265944.1013
A81: 79 | B81: 458695 | C81: 30013 | D81: 0.06543127786 | E81: 0.942560961 | F81: 1947.832463 | G81: =SUM(F81:$F$107) -> 15188.40293 | H81: 30285.61328 | I81: =SUM(H81:H$107) -> 232844.157
A82: 80 | B82: 432348 | C82: 29110 | D82: 0.06733002119 | E82: 0.9374369721 | F82: 1825.341161 | G82: =SUM(F82:$F$107) -> 13240.57047 | H82: 27580.71184 | I82: =SUM(H82:H$107) -> 202558.5437
A83: 81 | B83: 405299 | C83: 27923 | D83: 0.06889481593 | E83: 0.9316011142 | F83: 1691.700853 | G83: =SUM(F83:$F$107) -> 11415.22931 | H83: 24980.84927 | I83: =SUM(H83:H$107) -> 174977.8319
A84: 82 | B84: 377577 | C84: 26464 | D84: 0.07008901496 | E84: 0.9251543394 | F84: 1549.089927 | G84: =SUM(F84:$F$107) -> 9723.528455 | H84: 22485.20485 | I84: =SUM(H84:H$107) -> 149996.9826
A85: 83 | B85: 349317 | C85: 24752 | D85: 0.07085827486 | E85: 0.918251903 | F85: 1399.880902 | G85: =SUM(F85:$F$107) -> 8174.438528 | H85: 20098.82593 | I85: =SUM(H85:H$107) -> 127511.7777
A86: 84 | B86: 320761 | C86: 22820 | D86: 0.07114331231 | E86: 0.9110147431 | F86: 1246.970222 | G86: =SUM(F86:$F$107) -> 6774.557626 | H86: 17831.67648 | I86: =SUM(H86:H$107) -> 107412.9518
A87: 85 | B87: 292218 | C87: 20710 | D87: 0.07087174644 | E87: 0.9033324436 | F87: 1093.402825 | G87: =SUM(F87:$F$107) -> 5527.587404 | H87: 15695.57504 | I87: =SUM(H87:H$107) -> 89581.27533
A88: 86 | B88: 263970 | C88: 18473 | D88: 0.06998143728 | E88: 0.8951206577 | F88: 942.317319 | G88: =SUM(F88:$F$107) -> 4434.184579 | H88: 13698.86199 | I88: =SUM(H88:H$107) -> 73885.70029
A89: 87 | B89: 236285 | C89: 16171 | D89: 0.06843853821 | E89: 0.8864083628 | F89: 796.9962358 | G89: =SUM(F89:$F$107) -> 3491.86726 | H89: 11847.4728 | I89: =SUM(H89:H$107) -> 60186.83831
A90: 88 | B90: 209445 | C90: 13867 | D90: 0.06620831244 | E90: 0.8772088138 | F90: 660.3308064 | G90: =SUM(F90:$F$107) -> 2694.871024 | H90: 10146.56905 | I90: =SUM(H90:H$107) -> 48339.36551
A91: 89 | B91: 183727 | C91: 11628 | D91: 0.06328955461 | E91: 0.8676405754 | F91: 534.9876008 | G91: =SUM(F91:$F$107) -> 2034.540218 | H91: 8599.671306 | I91: =SUM(H91:H$107) -> 38192.79645
A92: 90 | B92: 159409 | C92: 9513 | D92: 0.05967668074 | E92: 0.8577495624 | F92: 422.878729 | G92: =SUM(F92:$F$107) -> 1499.552617 | H92: 7209.105083 | I92: =SUM(H92:H$107) -> 29593.12515
A93: 91 | B93: 136733 | C93: 7576 | D93: 0.05540725355 | E93: 0.8393950253 | F93: 325.3853233 | G93: =SUM(F93:$F$107) -> 1076.673888 | H93: 5974.499256 | I93: =SUM(H93:H$107) -> 22384.02007
A94: 92 | B94: 114773 | C94: 5859 | D94: 0.05104859157 | E94: 0.8088139197 | F94: 243.1314511 | G94: =SUM(F94:$F$107) -> 751.2885648 | H94: 4845.376768 | I94: =SUM(H94:H$107) -> 16409.52081
A95: 93 | B95: 92830 | C95: 4389 | D95: 0.04727997415 | E95: 0.7732306366 | F95: 175.9717185 | G95: =SUM(F95:$F$107) -> 508.1571137 | H95: 3786.481329 | I95: =SUM(H95:H$107) -> 11564.14404
A96: 94 | B96: 71779 | C96: 3174 | D96: 0.04421906129 | E96: 0.7322057984 | F96: 122.9543412 | G96: =SUM(F96:$F$107) -> 332.1853952 | H96: 2828.814849 | I96: =SUM(H96:H$107) -> 7777.662712
A97: 95 | B97: 52557 | C97: 2209 | D97: 0.0420305573 | E97: 0.6853891965 | F97: 82.67844704 | G97: =SUM(F97:$F$107) -> 209.2310541 | H97: 2001.231531 | I97: =SUM(H97:H$107) -> 4948.847863
A98: 96 | B98: 36022 | C98: 1475 | D98: 0.04094719893 | E98: 0.6326411637 | F98: 53.33941709 | G98: =SUM(F98:$F$107) -> 126.552607 | H98: 1325.239103 | I98: =SUM(H98:H$107) -> 2947.616331
A99: 97 | B99: 22789 | C99: 941 | D99: 0.04129185133 | E99: 0.5740927641 | F99: 32.87800965 | G99: =SUM(F99:$F$107) -> 73.21318991 | H99: 810.04909 | I99: =SUM(H99:H$107) -> 1622.377229
A100: 98 | B100: 13083 | C100: 570 | D100: 0.04356798899 | E100: 0.5104333868 | F100: 19.24200845 | G100: =SUM(F100:$F$107) -> 40.33518026 | H100: 449.3172185 | I100: =SUM(H100:H$107) -> 812.3281386
A101: 99 | B101: 6678 | C101: 328 | D101: 0.04911650195 | E101: 0.4424977538 | F101: 10.69815878 | G101: =SUM(F101:$F$107) -> 21.09317181 | H101: 221.5908305 | I101: =SUM(H101:H$107) -> 363.0109201
A102: 100 | B102: 2955 | C102: 177 | D102: 0.05989847716 | E102: 0.372250423 | F102: 5.577866455 | G102: =SUM(F102:$F$107) -> 10.39501303 | H102: 94.7376278 | I102: =SUM(H102:H$107) -> 141.4200896
A103: 101 | B103: 1100 | C103: 90 | D103: 0.08181818182 | E103: 0.3018181818 | F103: 2.740293026 | G103: =SUM(F103:$F$107) -> 4.817146576 | H103: 34.07354785 | I103: =SUM(H103:H$107) -> 46.68246179
A104: 102 | B104: 332 | C104: 43 | D104: 0.1295180723 | E104: 0.234939759 | F104: 1.26497692 | G104: =SUM(F104:$F$107) -> 2.07685355 | H104: 9.936247594 | I104: =SUM(H104:H$107) -> 12.60891394
A105: 103 | B105: 78 | C105: 19 | D105: 0.2435897436 | E105: 0.1666666667 | F105: 0.5400418264 | G105: =SUM(F105:$F$107) -> 0.81187663 | H105: 2.255477889 | I105: =SUM(H105:H$107) -> 2.672666344
A106: 104 | B106: 13 | C106: 7 | D106: 0.5384615385 | E106: 0.1538461538 | F106: 0.1922345683 | G106: =SUM(F106:$F$107) -> 0.2718348036 | H106: 0.3632009484 | I106: =SUM(H106:H$107) -> 0.4171884546
A107: 105 | B107: 2 | C107: 3 | D107: 1.5 | E107: 0 | F107: 0.07960023531 | G107: =SUM(F107:$F$107) -> 0.07960023531 | H107: 0.05398750626 | I107: =SUM(H107:H$107) -> 0.05398750626
A108: 106 | B108: 0 | C108: 1 | E108: =#REF!/B108 -> 

Sheet rente (hidden)
A1: Prévi-Pension
A2: Paramètres techniques
A3: Taux d'intérêt Annuel | C3: Taux d'intérêt Mensuel Equiv | D3: Taux Charg. d'acquisition | E3: Taux Charg. gestion | F3: Frais Gestion Rente
A4: 3.5 | C4: =(1+A4/100)^(1/12)-1 -> 0.002870898719 | D4: 3 | E4: 5 | F4: 1.5
A5: Input | D5: Output
E6: Rente Mensuelle
D7: Capital Terme | E7: durée (mois)
A8: Prime Mensuelle | B8: Prime mensuelle investie | C8: Durée Cotisation(mois) | E8: 6 | F8: 12 | G8: 18
A9: 10000 | B9: =A9*(1-$D$4/100-$E$4/100) -> 9200 | C9: 180 | D9: =Resultat!H10 ->  | E9: =$D$9*$C$4/((1+$F$4/100)*(1-(1+$C$4)^(-E8))) ->  | F9: =$D$9*$C$4/((1+$F$4/100)*(1-(1+$C$4)^(-F8))) ->  | G9: =$D$9*$C$4/((1+$F$4/100)*(1-(1+$C$4)^(-G8))) -> 

Sheet Resultat (hidden)
A1: DONNEES TECHNIQUES
A3: Police | B3: xxxxxxxxxx | D3: ID | F3: xxxxxx | I3: Date effet | J3: =IF(DAY(Q16)=1,Q16,DATE(YEAR(Q16),MONTH(Q16)+1,1)) ->  | N3: Differe | O3: =((YEAR(Q17)-YEAR(Q16))*12+(MONTH(Q17)-MONTH(Q16)))/12 ->  | P3: Nbre année de cotis pr cap dec | Q3: =12*MIN(O3,$I$7) -> 
N4: Vieillissement | O4: 0
A5: Taux d'interet | F5: Frais d'acquisition | K5: Frais de Gestion | P5: Autres
A6: taux interet technique | C6: 0.035 | F6: taux de frais d'acquisition | I6: 0.03 | K6: taux frais fract. mens | M6: 0.04 | P6: date de naissance | Q6: =Q18 -> 
A7: taux interet reel | C7: =C6-M8*(1+C6) -> 0.02904875 | F7: duree maximale pr calcul | I7: 20 | K7: taux frais gestion prime | M7: 0.05 | P7: taux majoration qx | Q7: 0 | S7: =DAY(Q16) -> 
A8: taux interet oper deces | C8: 0.035 | F8: Escompte? | I8: O | K8: taux frais gestion PM | M8: 0.00575 | P8: date de calcul PM | Q8: =DATE(YEAR(J3),MONTH(J3)+O3*12,DAY(J3)-1) -> 
C9: =C7/12 -> 0.002420729167 | F9: Cotisation | I9: =Q19 ->  | K9: taux frais gestion deces | M9: 0.2 | P9: Capital deces | Q9: =IF(Q15=1,I9*5*12,0) -> 
A10: mensuel composé | C10: =(1+C7)^(1/12)-1 -> 0.002389085312 | G10: Capital au Terme | H10: =VLOOKUP($Q$11,$B$54:$R$800,14,FALSE) ->  | K10: Assiette gestion contrat | M10: Ppure | P10: Doublement deces accidentel | Q10: 0
F11: Cumul Cotisation | G11: Capital au Terme | H11: =VLOOKUP($Q$11,$B$54:$R$800,4,FALSE) ->  | P11: date echeance | Q11: =IF(DAY(Q17)=1,Q17,DATE(YEAR(Q17),MONTH(Q17)+1,1)) -> 
P13: Donner ramemer input
P15: Code décès | Q15: ='Module '!#REF! ->  | R15: jours
P16: Date effet | Q16: ='Module '!#REF! ->  | R16: =DAY(Q16) -> 
P17: Date échéance | Q17: ='Module '!#REF! ->  | R17: =DAY(Q17) -> 
P18: Date de naissance | Q18: ='Module '!#REF! -> 
Q19: ='Module '!#REF! -> 
A24: ENTRER INFORMATIONS PROSPECT
A27: Cotisation Mensuelle | C27: 12000
A29: Date éffet contrat | C29: 2011-06-01
A31: Durée du contrat | C31: 15
A33: Date Naissance | C33: 1975-12-16
A36: =CONCATENATE("SIMULATION DE LA POLICE ",#REF!) -> 
A38: Nom et Prénons | C38: =+#REF! -> 
A40: Date effet
A42: Date d'échéance
A44: Durée | C44: =Q11 -> 
A46: Capital Déces garantie | C46: =Q9 -> 
A48: Capital au Terme | C48: =H10 -> 
A50: Cumul Cotisations | C50: =H11 -> 
A53: N° | B53: Date réception | C53: Date échéance | D53: Cotis | E53: Cumil Cotis Début. Périod | F53: Cions | G53: Fract. | H53: Gestion | I53: Cot a investir | J53: Age | K53: qx annuel | L53: Prime dec comm annuelle | M53: Prime dec com mens | N53: Cot epargne | O53: PM debut | P53: PM Fin
A54: 1 | B54: =J3 ->  | C54: =B54 ->  | D54: =$I$9 ->  | E54: 0 | F54: =IF($I$8="O",IF(12*(YEAR(C54)-YEAR($J$3))+MONTH(C54)-MONTH($J$3)+1>12,0,D54*$I$6*MIN($I$7,$O$3)),D54*$I$6) ->  | G54: =IF($M$10="Ppure",ROUND((D54-F54)*$M$6/(1+$M$6+$M$7),0),ROUND(D54*$M$6,0)) ->  | H54: =IF($M$10="Ppure",ROUND((D54-F54)*$M$7/(1+$M$6+$M$7),0),ROUND(D54*$M$7,0)) ->  | I54: =ROUND(D54-F54-G54-H54,1) ->  | J54: =INT(YEAR(C54)-YEAR($Q$6)+$O$4+0*(MONTH(C54)-MONTH($Q$6))/12) ->  | K54: =INDEX('PM 60-64'!$A$2:$E$107,J54+1,4) ->  | L54: =IF(A54>120,0,ROUND((K54*(1+$Q$7)*(1+$C$8)^(-0.5)+$Q$10)*(1+$M$9)*$Q$9,0)) ->  | M54: =ROUND(-L54/12,0) ->  | N54: =I54+M54 ->  | O54: 0 | P54: =N54*(1+$C$10) -> 
A55: 2 | B55: =DATE(YEAR(B54),MONTH(B54)+1,DAY(B54)) ->  | C55: =B55 ->  | E55: =E54+D54 ->  | F55: =IF($I$8="O",IF(12*(YEAR(C55)-YEAR($J$3))+MONTH(C55)-MONTH($J$3)+1>12,0,D55*$I$6*MIN($I$7,$O$3)),D55*$I$6) ->  | G55: =IF($M$10="Ppure",ROUND((D55-F55)*$M$6/(1+$M$6+$M$7),0),ROUND(D55*$M$6,0)) ->  | H55: =IF($M$10="Ppure",ROUND((D55-F55)*$M$7/(1+$M$6+$M$7),0),ROUND(D55*$M$7,0)) ->  | J55: =INT(YEAR(C55)-YEAR($Q$6)+$O$4+0*(MONTH(C55)-MONTH($Q$6))/12) ->  | K55: =INDEX('PM 60-64'!$A$2:$E$107,J55+1,4) ->  | L55: =IF(A55>120,0,ROUND((K55*(1+$Q$7)*(1+$C$8)^(-0.5)+$Q$10)*(1+$M$9)*$Q$9,0)) ->  | M55: =ROUND(-L55/12,0) ->  | O55: =P54 ->  | P55: =(O55+N55)*(1+$C$10) -> 
A56: 3 | B56: =DATE(YEAR(B55),MONTH(B55)+1,DAY(B55)) ->  | E56: =E55+D55 ->  | K56: =INDEX('PM 60-64'!$A$2:$E$107,J56+1,4) ->  | O56: =P55 -> 
A57: 4 | K57: =INDEX('PM 60-64'!$A$2:$E$107,J57+1,4) -> 
A58: 5 | K58: =INDEX('PM 60-64'!$A$2:$E$107,J58+1,4) -> 
A59: 6 | K59: =INDEX('PM 60-64'!$A$2:$E$107,J59+1,4) -> 
A60: 7 | K60: =INDEX('PM 60-64'!$A$2:$E$107,J60+1,4) -> 
A61: 8 | K61: =INDEX('PM 60-64'!$A$2:$E$107,J61+1,4) -> 
A62: 9 | K62: =INDEX('PM 60-64'!$A$2:$E$107,J62+1,4) -> 
A63: 10 | K63: =INDEX('PM 60-64'!$A$2:$E$107,J63+1,4) -> 
A64: 11 | K64: =INDEX('PM 60-64'!$A$2:$E$107,J64+1,4) -> 
A65: 12 | K65: =INDEX('PM 60-64'!$A$2:$E$107,J65+1,4) -> 
A66: 13 | K66: =INDEX('PM 60-64'!$A$2:$E$107,J66+1,4) -> 
A67: 14 | K67: =INDEX('PM 60-64'!$A$2:$E$107,J67+1,4) -> 
A68: 15 | K68: =INDEX('PM 60-64'!$A$2:$E$107,J68+1,4) -> 
A69: 16 | K69: =INDEX('PM 60-64'!$A$2:$E$107,J69+1,4) -> 
A70: 17 | K70: =INDEX('PM 60-64'!$A$2:$E$107,J70+1,4) -> 
A71: 18 | K71: =INDEX('PM 60-64'!$A$2:$E$107,J71+1,4) -> 
A72: 19 | K72: =INDEX('PM 60-64'!$A$2:$E$107,J72+1,4) -> 
A73: 20 | K73: =INDEX('PM 60-64'!$A$2:$E$107,J73+1,4) -> 
A74: 21 | K74: =INDEX('PM 60-64'!$A$2:$E$107,J74+1,4) -> 
A75: 22 | K75: =INDEX('PM 60-64'!$A$2:$E$107,J75+1,4) -> 
A76: 23 | K76: =INDEX('PM 60-64'!$A$2:$E$107,J76+1,4) -> 
A77: 24 | K77: =INDEX('PM 60-64'!$A$2:$E$107,J77+1,4) -> 
A78: 25 | K78: =INDEX('PM 60-64'!$A$2:$E$107,J78+1,4) -> 
A79: 26 | K79: =INDEX('PM 60-64'!$A$2:$E$107,J79+1,4) -> 
A80: 27 | K80: =INDEX('PM 60-64'!$A$2:$E$107,J80+1,4) -> 
A81: 28 | K81: =INDEX('PM 60-64'!$A$2:$E$107,J81+1,4) -> 
A82: 29 | K82: =INDEX('PM 60-64'!$A$2:$E$107,J82+1,4) -> 
A83: 30 | K83: =INDEX('PM 60-64'!$A$2:$E$107,J83+1,4) -> 
A84: 31 | K84: =INDEX('PM 60-64'!$A$2:$E$107,J84+1,4) -> 
A85: 32 | K85: =INDEX('PM 60-64'!$A$2:$E$107,J85+1,4) -> 
A86: 33 | K86: =INDEX('PM 60-64'!$A$2:$E$107,J86+1,4) -> 
A87: 34 | K87: =INDEX('PM 60-64'!$A$2:$E$107,J87+1,4) -> 
A88: 35 | K88: =INDEX('PM 60-64'!$A$2:$E$107,J88+1,4) -> 
A89: 36 | K89: =INDEX('PM 60-64'!$A$2:$E$107,J89+1,4) -> 
A90: 37 | K90: =INDEX('PM 60-64'!$A$2:$E$107,J90+1,4) -> 
A91: 38 | K91: =INDEX('PM 60-64'!$A$2:$E$107,J91+1,4) -> 
A92: 39 | K92: =INDEX('PM 60-64'!$A$2:$E$107,J92+1,4) -> 
A93: 40 | K93: =INDEX('PM 60-64'!$A$2:$E$107,J93+1,4) -> 
A94: 41 | K94: =INDEX('PM 60-64'!$A$2:$E$107,J94+1,4) -> 
A95: 42 | K95: =INDEX('PM 60-64'!$A$2:$E$107,J95+1,4) -> 
A96: 43 | K96: =INDEX('PM 60-64'!$A$2:$E$107,J96+1,4) -> 
A97: 44 | K97: =INDEX('PM 60-64'!$A$2:$E$107,J97+1,4) -> 
A98: 45 | K98: =INDEX('PM 60-64'!$A$2:$E$107,J98+1,4) -> 
A99: 46 | K99: =INDEX('PM 60-64'!$A$2:$E$107,J99+1,4) -> 
A100: 47 | K100: =INDEX('PM 60-64'!$A$2:$E$107,J100+1,4) -> 
A101: 48 | K101: =INDEX('PM 60-64'!$A$2:$E$107,J101+1,4) -> 
A102: 49 | K102: =INDEX('PM 60-64'!$A$2:$E$107,J102+1,4) -> 
A103: 50 | K103: =INDEX('PM 60-64'!$A$2:$E$107,J103+1,4) -> 
A104: 51 | K104: =INDEX('PM 60-64'!$A$2:$E$107,J104+1,4) -> 
A105: 52 | K105: =INDEX('PM 60-64'!$A$2:$E$107,J105+1,4) -> 
A106: 53 | K106: =INDEX('PM 60-64'!$A$2:$E$107,J106+1,4) -> 
A107: 54 | K107: =INDEX('PM 60-64'!$A$2:$E$107,J107+1,4) -> 
A108: 55 | K108: =INDEX('PM 60-64'!$A$2:$E$107,J108+1,4) -> 
A109: 56 | K109: =INDEX('PM 60-64'!$A$2:$E$107,J109+1,4) -> 
A110: 57 | K110: =INDEX('PM 60-64'!$A$2:$E$107,J110+1,4) -> 
A111: 58 | K111: =INDEX('PM 60-64'!$A$2:$E$107,J111+1,4) -> 
A112: 59 | K112: =INDEX('PM 60-64'!$A$2:$E$107,J112+1,4) -> 
A113: 60 | K113: =INDEX('PM 60-64'!$A$2:$E$107,J113+1,4) -> 
A114: 61 | K114: =INDEX('PM 60-64'!$A$2:$E$107,J114+1,4) -> 
A115: 62 | K115: =INDEX('PM 60-64'!$A$2:$E$107,J115+1,4) -> 
A116: 63 | K116: =INDEX('PM 60-64'!$A$2:$E$107,J116+1,4) -> 
A117: 64 | K117: =INDEX('PM 60-64'!$A$2:$E$107,J117+1,4) -> 
A118: 65 | D118: =$I$9 ->  | I118: =ROUND(D118-F118-G118-H118,1) ->  | K118: =INDEX('PM 60-64'!$A$2:$E$107,J118+1,4) ->  | N118: =I118+M118 -> 
A119: 66 | C119: =B119 ->  | F119: =IF($I$8="O",IF(12*(YEAR(C119)-YEAR($J$3))+MONTH(C119)-MONTH($J$3)+1>12,0,D119*$I$6*MIN($I$7,$O$3)),D119*$I$6) ->  | G119: =IF($M$10="Ppure",ROUND((D119-F119)*$M$6/(1+$M$6+$M$7),0),ROUND(D119*$M$6,0)) ->  | H119: =IF($M$10="Ppure",ROUND((D119-F119)*$M$7/(1+$M$6+$M$7),0),ROUND(D119*$M$7,0)) ->  | J119: =INT(YEAR(C119)-YEAR($Q$6)+$O$4+0*(MONTH(C119)-MONTH($Q$6))/12) ->  | K119: =INDEX('PM 60-64'!$A$2:$E$107,J119+1,4) ->  | L119: =IF(A119>120,0,ROUND((K119*(1+$Q$7)*(1+$C$8)^(-0.5)+$Q$10)*(1+$M$9)*$Q$9,0)) ->  | M119: =ROUND(-L119/12,0) ->  | P119: =(O119+N119)*(1+$C$10) -> 
A120: 67 | B120: =DATE(YEAR(B119),MONTH(B119)+1,DAY(B119)) ->  | E120: =E119+D119 ->  | K120: =INDEX('PM 60-64'!$A$2:$E$107,J120+1,4) ->  | O120: =P119 -> 
A121: 68 | K121: =INDEX('PM 60-64'!$A$2:$E$107,J121+1,4) -> 
A122: 69 | K122: =INDEX('PM 60-64'!$A$2:$E$107,J122+1,4) -> 
A123: 70 | K123: =INDEX('PM 60-64'!$A$2:$E$107,J123+1,4) -> 
A124: 71 | K124: =INDEX('PM 60-64'!$A$2:$E$107,J124+1,4) -> 
A125: 72 | K125: =INDEX('PM 60-64'!$A$2:$E$107,J125+1,4) -> 
A126: 73 | K126: =INDEX('PM 60-64'!$A$2:$E$107,J126+1,4) -> 
A127: 74 | K127: =INDEX('PM 60-64'!$A$2:$E$107,J127+1,4) -> 
A128: 75 | K128: =INDEX('PM 60-64'!$A$2:$E$107,J128+1,4) -> 
A129: 76 | K129: =INDEX('PM 60-64'!$A$2:$E$107,J129+1,4) -> 
A130: 77 | K130: =INDEX('PM 60-64'!$A$2:$E$107,J130+1,4) -> 
A131: 78 | K131: =INDEX('PM 60-64'!$A$2:$E$107,J131+1,4) -> 
A132: 79 | K132: =INDEX('PM 60-64'!$A$2:$E$107,J132+1,4) -> 
A133: 80 | K133: =INDEX('PM 60-64'!$A$2:$E$107,J133+1,4) -> 
A134: 81 | K134: =INDEX('PM 60-64'!$A$2:$E$107,J134+1,4) -> 
A135: 82 | K135: =INDEX('PM 60-64'!$A$2:$E$107,J135+1,4) -> 
A136: 83 | K136: =INDEX('PM 60-64'!$A$2:$E$107,J136+1,4) -> 
A137: 84 | K137: =INDEX('PM 60-64'!$A$2:$E$107,J137+1,4) -> 
A138: 85 | K138: =INDEX('PM 60-64'!$A$2:$E$107,J138+1,4) -> 
A139: 86 | K139: =INDEX('PM 60-64'!$A$2:$E$107,J139+1,4) -> 
A140: 87 | K140: =INDEX('PM 60-64'!$A$2:$E$107,J140+1,4) -> 
A141: 88 | K141: =INDEX('PM 60-64'!$A$2:$E$107,J141+1,4) -> 
A142: 89 | K142: =INDEX('PM 60-64'!$A$2:$E$107,J142+1,4) -> 
A143: 90 | K143: =INDEX('PM 60-64'!$A$2:$E$107,J143+1,4) -> 
A144: 91 | K144: =INDEX('PM 60-64'!$A$2:$E$107,J144+1,4) -> 
A145: 92 | K145: =INDEX('PM 60-64'!$A$2:$E$107,J145+1,4) -> 
A146: 93 | K146: =INDEX('PM 60-64'!$A$2:$E$107,J146+1,4) -> 
A147: 94 | K147: =INDEX('PM 60-64'!$A$2:$E$107,J147+1,4) -> 
A148: 95 | K148: =INDEX('PM 60-64'!$A$2:$E$107,J148+1,4) -> 
A149: 96 | K149: =INDEX('PM 60-64'!$A$2:$E$107,J149+1,4) -> 
A150: 97 | K150: =INDEX('PM 60-64'!$A$2:$E$107,J150+1,4) -> 
A151: 98 | K151: =INDEX('PM 60-64'!$A$2:$E$107,J151+1,4) -> 
A152: 99 | K152: =INDEX('PM 60-64'!$A$2:$E$107,J152+1,4) -> 
A153: 100 | K153: =INDEX('PM 60-64'!$A$2:$E$107,J153+1,4) -> 
A154: 101 | K154: =INDEX('PM 60-64'!$A$2:$E$107,J154+1,4) -> 
A155: 102 | K155: =INDEX('PM 60-64'!$A$2:$E$107,J155+1,4) -> 
A156: 103 | K156: =INDEX('PM 60-64'!$A$2:$E$107,J156+1,4) -> 
A157: 104 | K157: =INDEX('PM 60-64'!$A$2:$E$107,J157+1,4) -> 
A158: 105 | K158: =INDEX('PM 60-64'!$A$2:$E$107,J158+1,4) -> 
A159: 106 | K159: =INDEX('PM 60-64'!$A$2:$E$107,J159+1,4) -> 
A160: 107 | K160: =INDEX('PM 60-64'!$A$2:$E$107,J160+1,4) -> 
A161: 108 | K161: =INDEX('PM 60-64'!$A$2:$E$107,J161+1,4) -> 
A162: 109 | K162: =INDEX('PM 60-64'!$A$2:$E$107,J162+1,4) -> 
A163: 110 | K163: =INDEX('PM 60-64'!$A$2:$E$107,J163+1,4) -> 
A164: 111 | K164: =INDEX('PM 60-64'!$A$2:$E$107,J164+1,4) -> 
A165: 112 | K165: =INDEX('PM 60-64'!$A$2:$E$107,J165+1,4) -> 
A166: 113 | K166: =INDEX('PM 60-64'!$A$2:$E$107,J166+1,4) -> 
A167: 114 | K167: =INDEX('PM 60-64'!$A$2:$E$107,J167+1,4) -> 
A168: 115 | K168: =INDEX('PM 60-64'!$A$2:$E$107,J168+1,4) -> 
A169: 116 | K169: =INDEX('PM 60-64'!$A$2:$E$107,J169+1,4) -> 
A170: 117 | K170: =INDEX('PM 60-64'!$A$2:$E$107,J170+1,4) -> 
A171: 118 | K171: =INDEX('PM 60-64'!$A$2:$E$107,J171+1,4) -> 
A172: 119 | K172: =INDEX('PM 60-64'!$A$2:$E$107,J172+1,4) -> 
A173: 120 | K173: =INDEX('PM 60-64'!$A$2:$E$107,J173+1,4) ->  | L173: =IF(A173>120,0,ROUND((K173*(1+$Q$7)*(1+$C$8)^(-0.5)+$Q$10)*(1+$M$9)*$Q$9,0)) -> 
A174: 121 | K174: =INDEX('PM 60-64'!$A$2:$E$107,J174+1,4) ->  | L174: 0 | M174: 0
A175: 122 | K175: =INDEX('PM 60-64'!$A$2:$E$107,J175+1,4) ->  | L175: 0 | M175: 0
A176: 123 | K176: =INDEX('PM 60-64'!$A$2:$E$107,J176+1,4) ->  | L176: 0 | M176: 0
A177: 124 | K177: =INDEX('PM 60-64'!$A$2:$E$107,J177+1,4) ->  | L177: 0 | M177: 0
A178: 125 | K178: =INDEX('PM 60-64'!$A$2:$E$107,J178+1,4) ->  | L178: 0 | M178: 0
A179: 126 | K179: =INDEX('PM 60-64'!$A$2:$E$107,J179+1,4) ->  | L179: 0 | M179: 0
A180: 127 | K180: =INDEX('PM 60-64'!$A$2:$E$107,J180+1,4) ->  | L180: 0 | M180: 0
A181: 128 | K181: =INDEX('PM 60-64'!$A$2:$E$107,J181+1,4) ->  | L181: 0 | M181: 0
A182: 129 | D182: =$I$9 ->  | I182: =ROUND(D182-F182-G182-H182,1) ->  | K182: =INDEX('PM 60-64'!$A$2:$E$107,J182+1,4) ->  | L182: 0 | M182: 0 | N182: =I182+M182 -> 
A183: 130 | C183: =B183 ->  | F183: =IF($I$8="O",IF(12*(YEAR(C183)-YEAR($J$3))+MONTH(C183)-MONTH($J$3)+1>12,0,D183*$I$6*MIN($I$7,$O$3)),D183*$I$6) ->  | G183: =IF($M$10="Ppure",ROUND((D183-F183)*$M$6/(1+$M$6+$M$7),0),ROUND(D183*$M$6,0)) ->  | H183: =IF($M$10="Ppure",ROUND((D183-F183)*$M$7/(1+$M$6+$M$7),0),ROUND(D183*$M$7,0)) ->  | J183: =INT(YEAR(C183)-YEAR($Q$6)+$O$4+0*(MONTH(C183)-MONTH($Q$6))/12) ->  | K183: =INDEX('PM 60-64'!$A$2:$E$107,J183+1,4) ->  | L183: =IF(A183>120,0,ROUND((K183*(1+$Q$7)*(1+$C$8)^(-0.5)+$Q$10)*(1+$M$9)*$Q$9,0)) -> 0 | M183: =ROUND(-L183/12,0) -> 0 | P183: =(O183+N183)*(1+$C$10) -> 
A184: 131 | B184: =DATE(YEAR(B183),MONTH(B183)+1,DAY(B183)) ->  | E184: =E183+D183 ->  | K184: =INDEX('PM 60-64'!$A$2:$E$107,J184+1,4) ->  | L184: 0 | M184: 0 | O184: =P183 -> 
A185: 132 | K185: =INDEX('PM 60-64'!$A$2:$E$107,J185+1,4) ->  | L185: 0 | M185: 0
A186: 133 | K186: =INDEX('PM 60-64'!$A$2:$E$107,J186+1,4) ->  | L186: 0 | M186: 0
A187: 134 | K187: =INDEX('PM 60-64'!$A$2:$E$107,J187+1,4) ->  | L187: 0 | M187: 0
A188: 135 | K188: =INDEX('PM 60-64'!$A$2:$E$107,J188+1,4) ->  | L188: 0 | M188: 0
A189: 136 | K189: =INDEX('PM 60-64'!$A$2:$E$107,J189+1,4) ->  | L189: 0 | M189: 0
A190: 137 | K190: =INDEX('PM 60-64'!$A$2:$E$107,J190+1,4) ->  | L190: 0 | M190: 0
A191: 138 | K191: =INDEX('PM 60-64'!$A$2:$E$107,J191+1,4) ->  | L191: 0 | M191: 0
A192: 139 | K192: =INDEX('PM 60-64'!$A$2:$E$107,J192+1,4) ->  | L192: 0 | M192: 0
A193: 140 | K193: =INDEX('PM 60-64'!$A$2:$E$107,J193+1,4) ->  | L193: 0 | M193: 0
A194: 141 | K194: =INDEX('PM 60-64'!$A$2:$E$107,J194+1,4) ->  | L194: 0 | M194: 0
A195: 142 | K195: =INDEX('PM 60-64'!$A$2:$E$107,J195+1,4) ->  | L195: 0 | M195: 0
A196: 143 | K196: =INDEX('PM 60-64'!$A$2:$E$107,J196+1,4) ->  | L196: 0 | M196: 0
A197: 144 | K197: =INDEX('PM 60-64'!$A$2:$E$107,J197+1,4) ->  | L197: 0 | M197: 0
A198: 145 | K198: =INDEX('PM 60-64'!$A$2:$E$107,J198+1,4) ->  | L198: 0 | M198: 0
A199: 146 | K199: =INDEX('PM 60-64'!$A$2:$E$107,J199+1,4) ->  | L199: 0 | M199: 0
A200: 147 | K200: =INDEX('PM 60-64'!$A$2:$E$107,J200+1,4) ->  | L200: 0 | M200: 0
A201: 148 | K201: =INDEX('PM 60-64'!$A$2:$E$107,J201+1,4) ->  | L201: 0 | M201: 0
A202: 149 | K202: =INDEX('PM 60-64'!$A$2:$E$107,J202+1,4) ->  | L202: 0 | M202: 0
A203: 150 | K203: =INDEX('PM 60-64'!$A$2:$E$107,J203+1,4) ->  | L203: 0 | M203: 0
A204: 151 | K204: =INDEX('PM 60-64'!$A$2:$E$107,J204+1,4) ->  | L204: 0 | M204: 0
A205: 152 | K205: =INDEX('PM 60-64'!$A$2:$E$107,J205+1,4) ->  | L205: 0 | M205: 0
A206: 153 | K206: =INDEX('PM 60-64'!$A$2:$E$107,J206+1,4) ->  | L206: 0 | M206: 0
A207: 154 | K207: =INDEX('PM 60-64'!$A$2:$E$107,J207+1,4) ->  | L207: 0 | M207: 0
A208: 155 | K208: =INDEX('PM 60-64'!$A$2:$E$107,J208+1,4) ->  | L208: 0 | M208: 0
A209: 156 | K209: =INDEX('PM 60-64'!$A$2:$E$107,J209+1,4) ->  | L209: 0 | M209: 0
A210: 157 | K210: =INDEX('PM 60-64'!$A$2:$E$107,J210+1,4) ->  | L210: 0 | M210: 0
A211: 158 | K211: =INDEX('PM 60-64'!$A$2:$E$107,J211+1,4) ->  | L211: 0 | M211: 0
A212: 159 | K212: =INDEX('PM 60-64'!$A$2:$E$107,J212+1,4) ->  | L212: 0 | M212: 0
A213: 160 | K213: =INDEX('PM 60-64'!$A$2:$E$107,J213+1,4) ->  | L213: 0 | M213: 0
A214: 161 | K214: =INDEX('PM 60-64'!$A$2:$E$107,J214+1,4) ->  | L214: 0 | M214: 0
A215: 162 | K215: =INDEX('PM 60-64'!$A$2:$E$107,J215+1,4) ->  | L215: 0 | M215: 0
A216: 163 | K216: =INDEX('PM 60-64'!$A$2:$E$107,J216+1,4) ->  | L216: 0 | M216: 0
A217: 164 | K217: =INDEX('PM 60-64'!$A$2:$E$107,J217+1,4) ->  | L217: 0 | M217: 0
A218: 165 | K218: =INDEX('PM 60-64'!$A$2:$E$107,J218+1,4) ->  | L218: 0 | M218: 0
A219: 166 | K219: =INDEX('PM 60-64'!$A$2:$E$107,J219+1,4) ->  | L219: 0 | M219: 0
A220: 167 | K220: =INDEX('PM 60-64'!$A$2:$E$107,J220+1,4) ->  | L220: 0 | M220: 0
A221: 168 | K221: =INDEX('PM 60-64'!$A$2:$E$107,J221+1,4) ->  | L221: 0 | M221: 0
A222: 169 | K222: =INDEX('PM 60-64'!$A$2:$E$107,J222+1,4) ->  | L222: 0 | M222: 0
A223: 170 | K223: =INDEX('PM 60-64'!$A$2:$E$107,J223+1,4) ->  | L223: 0 | M223: 0
... 362 more rows

Sheet GUIDE (hidden)
B2: GUIDE D'UTILISATION
A5: Pour l'utilisation d'outil :
A7: 1) veuillez cliquer sur le bouton "Activer les macro"
A9: 2) veuillez cliquer sur le bouton "EFFACER" dans l'onglet "Module"
A11: 3) Renseigner les cellules en bleu dans l'onglet "Module"
A13: Etude présentée par : | C13: KAFUI
A14: Réalisée pour : | C14: Toto
A15: Date de la simulation (jj/mm/aaaa) : | C15: 2015-03-31
A17: COTISATION MENSUELLE | B17: 1909-07-31
A19: DATE DE NAISSANCE | B19: 1980-12-09
A21: DATE EFFET | B21: 2015-04-30
A23: DATE ECHEANCE | B23: 2045-04-01
A25: OPTION DECES | B25: 1 | C25: 1 pour décès | D25: 0 pour décès
A27: 5) Cliquer sur le bouton "LANCER LA SIMULATION"
A29: 6) Dans l'onglet "Resultat 1" cliquer sur le bouton "Imprimer" qui vous permettra d'enregistrer le fichier PDF

Sheet Module
B2: MODULE DE SIMULATION DU PRODUIT NEREM
B6: Etude présentée par : | D6: ABALO BEN
B7: Date de la simulation (jj/mm/aaaa) : | D7: =TODAY() -> 2017-01-20
B12: INFORMATIONS SUR LE CLIENT
B14: NOM ET PRENOMS | D14: LASSEY BEN | F14: PROFESSION | H14: CADRE DE BANQUE
B16: DATE DE NAISSANCE | D16: 1980-12-18 | F16: EMPLOYEUR | H16: GTAC2A-VIE
B18: LIEU DE NAISSANCE | D18: LOME | F18: ADRESSE | H18: BP/331
B20: TELEPHONE | D20: 90114488 | F20: E-MAIL | H20: ben@yahoo.fr
B24: INFORMATIONS SUR LE CONTRAT
B26: EFFET COUVERTURE | D26: 2016-12-07 | H26: jj/mm/aaaa
B28: MONTANT MENSUEL DE LA PENSION | D28: 100000 | H28: F CFA
B30: DUREE DE SERVICE DE LA PENSION | D30: 36 | H30: MOIS
B35: Duree service rente | D35: Option décès
B37: 12 | D37: 0
B38: 24 | D38: 1
B39: 36

Sheet calcu (hidden)
D1: frais | G1: taux | H1: 0.035 | I1: 0.04
A2: age retraite | B2: 60 | D2: gest | E2: 0.11 | H2: =(1+H1)^(1/12)-1 -> 0.002870898719 | I2: =(1+I1)^(1/12)-1 -> 0.003273739782
B3: 0.00727 | D3: acquis | E3: 0.03
D4: gest rente | E4: 0
A5: rente | B5: ='Module '!D28 -> 100000
A6: duré | B6: ='Module '!D30 -> 36 | L6: Rente avec PB
B8: ann | C8: mois | K8: Cpital constitif | L8: =VLOOKUP($C$9,$A$26:$F$1033,6,FALSE) -> 3660740.749
A9: duréé contrat | B9: ='calcu '!$K$27-(YEAR(B18)-YEAR(B17))+5 -> 24 | C9: =B9*12 -> 288
K10: rente | L10: =L8/((1+E4)*(1+H2)*(1-(1+H2)^(-B6))/H2) -> 106871.5013
A11: captial constituf rente | C11: =B5*(1+E4)*(1+H2)*(1-(1+H2)^(-B6))/H2 -> 3425366.637 | F11: =C11-E13 -> 1224758.637
A13: prime mensuelle | C13: =ROUND(-C11/((1+H2)*(1-(1+H2)^(B9*12))/H2),0) -> 7641 | E13: =C13*12*B9 -> 2200608
A15: Prime HT | C15: =ROUND(C13/(1-E2-E3),0) -> 8885 | E15: =C15*12*B9 -> 2558880 | F15: =C11-E15 -> 866486.6366 | K15: =L10*E4 -> 0
A17: date naissance | B17: ='Module '!D16 -> 1980-12-18
A18: date effet | B18: ='Module '!D26 -> 2016-12-07
K24: Date min | L24: Date max
A25: Duree | B25: Prim HT | C25: cumul | D25: Pime inv | E25: PM à 3.5% | F25: PM à 4% | K25: =DATE(YEAR('Module '!$D$26)-K27,1,1) -> 1961-01-01 | L25: =DATE(YEAR(TODAY())-18,12,31) -> 1999-12-31
A26: 1 | B26: =IF(A26<=$C$9,$C$15,0) -> 8885 | C26: =B26 -> 8885 | D26: =IF(A26<=$C$9,$C$13,0) -> 7641 | E26: =IF(A26<=$C$9,D26*(1+$H$2),0) -> 7662.936537 | F26: =IF(A26<=$C$9,D26*(1+$I$2),0) -> 7666.014646
A27: 2 | B27: =IF(A27<=$C$9,$C$15,0) -> 8885 | C27: =B27+C26 -> 17770 | D27: =IF(A27<=$C$9,$C$13,0) -> 7641 | E27: =IF(A27<=$C$9,(D27+E26)*(1+$H$2),0) -> 15347.87259 | F27: =IF(A27<=$C$9,(F26+D27)*(1+$I$2),0) -> 15357.12583 | J27: age retraite | K27: =IF(L27=TRUE,60,55) -> 55 | L27: FALSE
A28: 3 | B28: 8885 | C28: =B28+C27 -> 26655 | D28: 7641 | E28: =IF(A28<=$C$9,(D28+E27)*(1+$H$2),0) -> 23054.87131 | F28: 23073.41571
A29: 4 | B29: 8885 | C29: 35540 | D29: 7641 | E29: 30783.99605 | F29: 30814.96671
A30: 5 | B30: 8885 | C30: 44425 | D30: 7641 | E30: 38535.31032 | F30: 38581.86154
A31: 6 | B31: 8885 | C31: 53310 | D31: 7641 | E31: 46308.87783 | F31: 46374.18316
A32: 7 | B32: 8885 | C32: 62195 | D32: 7641 | E32: 54104.76247 | F32: 54192.01482
A33: 8 | B33: 8885 | C33: 71080 | D33: 7641 | E33: 61923.0283 | F33: 62035.44002
A34: 9 | B34: 8885 | C34: 79965 | D34: 7641 | E34: 69763.73958 | F34: 69904.54255
A35: 10 | B35: 8885 | C35: 88850 | D35: 7641 | E35: 77626.96075 | F35: 77799.40648
A36: 11 | B36: 8885 | C36: 97735 | D36: 7641 | E36: 85512.75643 | F36: 85720.11613
A37: 12 | B37: 8885 | C37: 106620 | D37: 7641 | E37: 93421.19143 | F37: 93666.75613
A38: 13 | B38: 8885 | C38: 115505 | D38: 7641 | E38: 101352.3307 | F38: 101639.4114
A39: 14 | B39: 8885 | C39: 124390 | D39: 7641 | E39: 109306.2396 | F39: 109638.167
A40: 15 | B40: 8885 | C40: 133275 | D40: 7641 | E40: 117282.9832 | F40: 117663.1085
A41: 16 | B41: 8885 | C41: 142160 | D41: 7641 | E41: 125282.6273 | F41: 125714.3215
A42: 17 | B42: 8885 | C42: 151045 | D42: 7641 | E42: 133305.2376 | F42: 133791.8921
A43: 18 | B43: 8885 | C43: 159930 | D43: 7641 | E43: 141350.88 | F43: 141895.9066
A44: 19 | B44: 8885 | C44: 168815 | D44: 7641 | E44: 149419.6206 | F44: 150026.4515
A45: 20 | B45: 8885 | C45: 177700 | D45: 7641 | E45: 157511.5257 | F45: 158183.6138
A46: 21 | B46: 8885 | C46: 186585 | D46: 7641 | E46: 165626.6619 | F46: 166367.4804
A47: 22 | B47: 8885 | C47: 195470 | D47: 7641 | E47: 173765.0958 | F47: 174578.1389
A48: 23 | B48: 8885 | C48: 204355 | D48: 7641 | E48: 181926.8943 | F48: 182815.6769
A49: 24 | B49: 8885 | C49: 213240 | D49: 7641 | E49: 190112.1246 | F49: 191080.1825
A50: 25 | B50: 8885 | C50: 222125 | D50: 7641 | E50: 198320.8537 | F50: 199371.744
A51: 26 | B51: 8885 | C51: 231010 | D51: 7641 | E51: 206553.1494 | F51: 207690.4498
A52: 27 | B52: 8885 | C52: 239895 | D52: 7641 | E52: 214809.0791 | F52: 216036.3889
A53: 28 | B53: 8885 | C53: 248780 | D53: 7641 | E53: 223088.7107 | F53: 224409.6505
A54: 29 | B54: 8885 | C54: 257665 | D54: 7641 | E54: 231392.1124 | F54: 232810.324
A55: 30 | B55: 8885 | C55: 266550 | D55: 7641 | E55: 239719.3522 | F55: 241238.499
A56: 31 | B56: 8885 | C56: 275435 | D56: 7641 | E56: 248070.4987 | F56: 249694.2657
A57: 32 | B57: 8885 | C57: 284320 | D57: 7641 | E57: 256445.6205 | F57: 258177.7144
A58: 33 | B58: 8885 | C58: 293205 | D58: 7641 | E58: 264844.7865 | F58: 266688.9357
A59: 34 | B59: 8885 | C59: 302090 | D59: 7641 | E59: 273268.0656 | F59: 275228.0206
A60: 35 | B60: 8885 | C60: 310975 | D60: 7641 | E60: 281715.5271 | F60: 283795.0601
A61: 36 | B61: 8885 | C61: 319860 | D61: 7641 | E61: 290187.2403 | F61: 292390.1459
A62: 37 | B62: 8885 | C62: 328745 | D62: 7641 | E62: 298683.2751 | F62: 301013.3698
A63: 38 | B63: 8885 | C63: 337630 | D63: 7641 | E63: 307203.701 | F63: 309664.8239
A64: 39 | B64: 8885 | C64: 346515 | D64: 7641 | E64: 315748.5883 | F64: 318344.6006
A65: 40 | B65: 8885 | C65: 355400 | D65: 7641 | E65: 324318.007 | F65: 327052.7927
A66: 41 | B66: 8885 | C66: 364285 | D66: 7641 | E66: 332912.0277 | F66: 335789.493
A67: 42 | B67: 8885 | C67: 373170 | D67: 7641 | E67: 341530.721 | F67: 344554.7951
A68: 43 | B68: 8885 | C68: 382055 | D68: 7641 | E68: 350174.1576 | F68: 353348.7925
A69: 44 | B69: 8885 | C69: 390940 | D69: 7641 | E69: 358842.4087 | F69: 362171.5791
A70: 45 | B70: 8885 | C70: 399825 | D70: 7641 | E70: 367535.5454 | F70: 371023.2493
A71: 46 | B71: 8885 | C71: 408710 | D71: 7641 | E71: 376253.6393 | F71: 379903.8975
A72: 47 | B72: 8885 | C72: 417595 | D72: 7641 | E72: 384996.7619 | F72: 388813.6187
A73: 48 | B73: 8885 | C73: 426480 | D73: 7641 | E73: 393764.9852 | F73: 397752.5079
A74: 49 | B74: 8885 | C74: 435365 | D74: 7641 | E74: 402558.3811 | F74: 406720.6608
A75: 50 | B75: 8885 | C75: 444250 | D75: 7641 | E75: 411377.022 | F75: 415718.173
A76: 51 | B76: 8885 | C76: 453135 | D76: 7641 | E76: 420220.9803 | F76: 424745.1408
A77: 52 | B77: 8885 | C77: 462020 | D77: 7641 | E77: 429090.3287 | F77: 433801.6605
A78: 53 | B78: 8885 | C78: 470905 | D78: 7641 | E78: 437985.1401 | F78: 442887.8289
A79: 54 | B79: 8885 | C79: 479790 | D79: 7641 | E79: 446905.4876 | F79: 452003.7431
A80: 55 | B80: 8885 | C80: 488675 | D80: 7641 | E80: 455851.4446 | F80: 461149.5003
A81: 56 | B81: 8885 | C81: 497560 | D81: 7641 | E81: 464823.0844 | F81: 470325.1984
A82: 57 | B82: 8885 | C82: 506445 | D82: 7641 | E82: 473820.481 | F82: 479530.9354
A83: 58 | B83: 8885 | C83: 515330 | D83: 7641 | E83: 482843.7081 | F83: 488766.8096
A84: 59 | B84: 8885 | C84: 524215 | D84: 7641 | E84: 491892.84 | F84: 498032.9195
A85: 60 | B85: 8885 | C85: 533100 | D85: 7641 | E85: 500967.9511 | F85: 507329.3644
A86: 61 | B86: 8885 | C86: 541985 | D86: 7641 | E86: 510069.1159 | F86: 516656.2433
A87: 62 | B87: 8885 | C87: 550870 | D87: 7641 | E87: 519196.4092 | F87: 526013.6561
A88: 63 | B88: 8885 | C88: 559755 | D88: 7641 | E88: 528349.906 | F88: 535401.7026
A89: 64 | B89: 8885 | C89: 568640 | D89: 7641 | E89: 537529.6816 | F89: 544820.4831
A90: 65 | B90: 8885 | C90: 577525 | D90: =IF(A90<=$C$9,$C$13,0) -> 7641 | E90: 546735.8114 | F90: 554270.0982
A91: 66 | B91: =IF(A91<=$C$9,$C$15,0) -> 8885 | C91: 586410 | D91: 7641 | E91: =IF(A91<=$C$9,(D91+E90)*(1+$H$2),0) -> 555968.3711 | F91: =IF(A91<=$C$9,(F90+D91)*(1+$I$2),0) -> 563750.6489
A92: 67 | B92: 8885 | C92: =B92+C91 -> 595295 | D92: 7641 | E92: 565227.4365 | F92: 573262.2365
A93: 68 | B93: 8885 | C93: 604180 | D93: 7641 | E93: 574513.0838 | F93: 582804.9625
A94: 69 | B94: 8885 | C94: 613065 | D94: 7641 | E94: 583825.3892 | F94: 592378.929
A95: 70 | B95: 8885 | C95: 621950 | D95: 7641 | E95: 593164.4293 | F95: 601984.2381
A96: 71 | B96: 8885 | C96: 630835 | D96: 7641 | E96: 602530.2808 | F96: 611620.9925
A97: 72 | B97: 8885 | C97: 639720 | D97: 7641 | E97: 611923.0208 | F97: 621289.2951
A98: 73 | B98: 8885 | C98: 648605 | D98: 7641 | E98: 621342.7263 | F98: 630989.2492
A99: 74 | B99: 8885 | C99: 657490 | D99: 7641 | E99: 630789.4749 | F99: 640720.9585
A100: 75 | B100: 8885 | C100: 666375 | D100: 7641 | E100: 640263.3442 | F100: 650484.5268
A101: 76 | B101: 8885 | C101: 675260 | D101: 7641 | E101: 649764.4119 | F101: 660280.0585
A102: 77 | B102: 8885 | C102: 684145 | D102: 7641 | E102: 659292.7563 | F102: 670107.6583
A103: 78 | B103: 8885 | C103: 693030 | D103: 7641 | E103: 668848.4555 | F103: 679967.431
A104: 79 | B104: 8885 | C104: 701915 | D104: 7641 | E104: 678431.5882 | F104: 689859.4821
A105: 80 | B105: 8885 | C105: 710800 | D105: 7641 | E105: 688042.2332 | F105: 699783.9172
A106: 81 | B106: 8885 | C106: 719685 | D106: 7641 | E106: 697680.4693 | F106: 709740.8422
A107: 82 | B107: 8885 | C107: 728570 | D107: 7641 | E107: 707346.3758 | F107: 719730.3637
A108: 83 | B108: 8885 | C108: 737455 | D108: 7641 | E108: 717040.0321 | F108: 729752.5883
A109: 84 | B109: 8885 | C109: 746340 | D109: 7641 | E109: 726761.5179 | F109: 739807.623
A110: 85 | B110: 8885 | C110: 755225 | D110: 7641 | E110: 736510.9132 | F110: 749895.5753
A111: 86 | B111: 8885 | C111: 764110 | D111: 7641 | E111: 746288.298 | F111: 760016.5529
A112: 87 | B112: 8885 | C112: 772995 | D112: 7641 | E112: 756093.7526 | F112: 770170.664
A113: 88 | B113: 8885 | C113: 781880 | D113: 7641 | E113: 765927.3577 | F113: 780358.017
A114: 89 | B114: 8885 | C114: 790765 | D114: 7641 | E114: 775789.1942 | F114: 790578.7207
A115: 90 | B115: 8885 | C115: 799650 | D115: 7641 | E115: 785679.3429 | F115: 800832.8844
A116: 91 | B116: 8885 | C116: 808535 | D116: 7641 | E116: 795597.8853 | F116: 811120.6175
A117: 92 | B117: 8885 | C117: 817420 | D117: 7641 | E117: 805544.9027 | F117: 821442.03
A118: 93 | B118: 8885 | C118: 826305 | D118: 7641 | E118: 815520.4771 | F118: 831797.2321
A119: 94 | B119: 8885 | C119: 835190 | D119: 7641 | E119: 825524.6903 | F119: 842186.3344
A120: 95 | B120: 8885 | C120: 844075 | D120: 7641 | E120: 835557.6247 | F120: 852609.448
A121: 96 | B121: 8885 | C121: 852960 | D121: 7641 | E121: 845619.3625 | F121: 863066.6841
A122: 97 | B122: 8885 | C122: 861845 | D122: 7641 | E122: 855709.9866 | F122: 873558.1545
A123: 98 | B123: 8885 | C123: 870730 | D123: 7641 | E123: 865829.5798 | F123: 884083.9712
A124: 99 | B124: 8885 | C124: 879615 | D124: 7641 | E124: 875978.2254 | F124: 894644.2467
A125: 100 | B125: 8885 | C125: 888500 | D125: 7641 | E125: 886156.0067 | F125: 905239.0938
A126: 101 | B126: 8885 | C126: 897385 | D126: 7641 | E126: 896363.0074 | F126: 915868.6257
A127: 102 | B127: 8885 | C127: 906270 | D127: 7641 | E127: 906599.3113 | F127: 926532.9559
A128: 103 | B128: 8885 | C128: 915155 | D128: 7641 | E128: 916865.0027 | F128: 937232.1983
A129: 104 | B129: 8885 | C129: 924040 | D129: 7641 | E129: 927160.1658 | F129: 947966.4673
A130: 105 | B130: 8885 | C130: 932925 | D130: 7641 | E130: 937484.8852 | F130: 958735.8775
A131: 106 | B131: 8885 | C131: 941810 | D131: 7641 | E131: 947839.2459 | F131: 969540.5439
A132: 107 | B132: 8885 | C132: 950695 | D132: 7641 | E132: 958223.3329 | F132: 980380.582
A133: 108 | B133: 8885 | C133: 959580 | D133: 7641 | E133: 968637.2316 | F133: 991256.1076
A134: 109 | B134: 8885 | C134: 968465 | D134: 7641 | E134: 979081.0275 | F134: 1002167.237
A135: 110 | B135: 8885 | C135: 977350 | D135: 7641 | E135: 989554.8065 | F135: 1013114.086
A136: 111 | B136: 8885 | C136: 986235 | D136: 7641 | E136: 1000058.655 | F136: 1024096.773
A137: 112 | B137: 8885 | C137: 995120 | D137: 7641 | E137: 1010592.658 | F137: 1035115.414
A138: 113 | B138: 8885 | C138: 1004005 | D138: 7641 | E138: 1021156.904 | F138: 1046170.127
A139: 114 | B139: 8885 | C139: 1012890 | D139: 7641 | E139: 1031751.479 | F139: 1057261.03
A140: 115 | B140: 8885 | C140: 1021775 | D140: 7641 | E140: 1042376.469 | F140: 1068388.242
A141: 116 | B141: 8885 | C141: 1030660 | D141: 7641 | E141: 1053031.963 | F141: 1079551.882
A142: 117 | B142: 8885 | C142: 1039545 | D142: 7641 | E142: 1063718.048 | F142: 1090752.069
A143: 118 | B143: 8885 | C143: 1048430 | D143: 7641 | E143: 1074434.811 | F143: 1101988.922
A144: 119 | B144: 8885 | C144: 1057315 | D144: 7641 | E144: 1085182.341 | F144: 1113262.561
A145: 120 | B145: 8885 | C145: 1066200 | D145: 7641 | E145: 1095960.726 | F145: 1124573.108
A146: 121 | B146: 8885 | C146: 1075085 | D146: 7641 | E146: 1106770.055 | F146: 1135920.682
A147: 122 | B147: 8885 | C147: 1083970 | D147: 7641 | E147: 1117610.416 | F147: 1147305.406
A148: 123 | B148: 8885 | C148: 1092855 | D148: 7641 | E148: 1128481.899 | F148: 1158727.4
A149: 124 | B149: 8885 | C149: 1101740 | D149: 7641 | E149: 1139384.593 | F149: 1170186.786
A150: 125 | B150: 8885 | C150: 1110625 | D150: 7641 | E150: 1150318.587 | F150: 1181683.688
A151: 126 | B151: 8885 | C151: 1119510 | D151: 7641 | E151: 1161283.972 | F151: 1193218.228
A152: 127 | B152: 8885 | C152: 1128395 | D152: 7641 | E152: 1172280.837 | F152: 1204790.528
A153: 128 | B153: 8885 | C153: 1137280 | D153: 7641 | E153: 1183309.273 | F153: 1216400.714
A154: 129 | B154: 8885 | C154: 1146165 | D154: =IF(A154<=$C$9,$C$13,0) -> 7641 | E154: 1194369.371 | F154: 1228048.908
A155: 130 | B155: =IF(A155<=$C$9,$C$15,0) -> 8885 | C155: 1155050 | D155: 7641 | E155: =IF(A155<=$C$9,(D155+E154)*(1+$H$2),0) -> 1205461.221 | F155: =IF(A155<=$C$9,(F154+D155)*(1+$I$2),0) -> 1239735.235
A156: 131 | B156: 8885 | C156: =B156+C155 -> 1163935 | D156: 7641 | E156: 1216584.914 | F156: 1251459.82
A157: 132 | B157: 8885 | C157: 1172820 | D157: 7641 | E157: 1227740.543 | F157: 1263222.788
A158: 133 | B158: 8885 | C158: 1181705 | D158: 7641 | E158: 1238928.198 | F158: 1275024.266
A159: 134 | B159: 8885 | C159: 1190590 | D159: 7641 | E159: 1250147.972 | F159: 1286864.378
A160: 135 | B160: 8885 | C160: 1199475 | D160: 7641 | E160: 1261399.957 | F160: 1298743.252
A161: 136 | B161: 8885 | C161: 1208360 | D161: 7641 | E161: 1272684.245 | F161: 1310661.014
A162: 137 | B162: 8885 | C162: 1217245 | D162: 7641 | E162: 1284000.929 | F162: 1322617.792
A163: 138 | B163: 8885 | C163: 1226130 | D163: 7641 | E163: 1295350.102 | F163: 1334613.713
A164: 139 | B164: 8885 | C164: 1235015 | D164: 7641 | E164: 1306731.858 | F164: 1346648.905
A165: 140 | B165: 8885 | C165: 1243900 | D165: 7641 | E165: 1318146.289 | F165: 1358723.498
A166: 141 | B166: 8885 | C166: 1252785 | D166: 7641 | E166: 1329593.49 | F166: 1370837.62
A167: 142 | B167: 8885 | C167: 1261670 | D167: 7641 | E167: 1341073.555 | F167: 1382991.4
A168: 143 | B168: 8885 | C168: 1270555 | D168: 7641 | E168: 1352586.578 | F168: 1395184.969
A169: 144 | B169: 8885 | C169: 1279440 | D169: 7641 | E169: 1364132.653 | F169: 1407418.456
A170: 145 | B170: 8885 | C170: 1288325 | D170: 7641 | E170: 1375711.877 | F170: 1419691.993
A171: 146 | B171: 8885 | C171: 1297210 | D171: 7641 | E171: 1387324.343 | F171: 1432005.709
A172: 147 | B172: 8885 | C172: 1306095 | D172: 7641 | E172: 1398970.147 | F172: 1444359.738
A173: 148 | B173: 8885 | C173: 1314980 | D173: 7641 | E173: 1410649.385 | F173: 1456754.211
A174: 149 | B174: 8885 | C174: 1323865 | D174: 7641 | E174: 1422362.153 | F174: 1469189.26
A175: 150 | B175: 8885 | C175: 1332750 | D175: 7641 | E175: 1434108.547 | F175: 1481665.017
A176: 151 | B176: 8885 | C176: 1341635 | D176: 7641 | E176: 1445888.664 | F176: 1494181.618
A177: 152 | B177: 8885 | C177: 1350520 | D177: 7641 | E177: 1457702.601 | F177: 1506739.194
A178: 153 | B178: 8885 | C178: 1359405 | D178: 7641 | E178: 1469550.454 | F178: 1519337.881
A179: 154 | B179: 8885 | C179: 1368290 | D179: 7641 | E179: 1481432.321 | F179: 1531977.812
A180: 155 | B180: 8885 | C180: 1377175 | D180: 7641 | E180: 1493348.299 | F180: 1544659.124
A181: 156 | B181: 8885 | C181: 1386060 | D181: 7641 | E181: 1505298.488 | F181: 1557381.951
A182: 157 | B182: 8885 | C182: 1394945 | D182: 7641 | E182: 1517282.984 | F182: 1570146.428
A183: 158 | B183: 8885 | C183: 1403830 | D183: 7641 | E183: 1529301.886 | F183: 1582952.694
A184: 159 | B184: 8885 | C184: 1412715 | D184: 7641 | E184: 1541355.293 | F184: 1595800.884
A185: 160 | B185: 8885 | C185: 1421600 | D185: 7641 | E185: 1553443.305 | F185: 1608691.135
A186: 161 | B186: 8885 | C186: 1430485 | D186: 7641 | E186: 1565566.02 | F186: 1621623.586
A187: 162 | B187: 8885 | C187: 1439370 | D187: 7641 | E187: 1577723.538 | F187: 1634598.374
A188: 163 | B188: 8885 | C188: 1448255 | D188: 7641 | E188: 1589915.959 | F188: 1647615.639
A189: 164 | B189: 8885 | C189: 1457140 | D189: 7641 | E189: 1602143.383 | F189: 1660675.518
A190: 165 | B190: 8885 | C190: 1466025 | D190: 7641 | E190: 1614405.911 | F190: 1673778.152
A191: 166 | B191: 8885 | C191: 1474910 | D191: 7641 | E191: 1626703.643 | F191: 1686923.681
A192: 167 | B192: 8885 | C192: 1483795 | D192: 7641 | E192: 1639036.681 | F192: 1700112.245
A193: 168 | B193: 8885 | C193: 1492680 | D193: 7641 | E193: 1651405.126 | F193: 1713343.985
A194: 169 | B194: 8885 | C194: 1501565 | D194: 7641 | E194: 1663809.08 | F194: 1726619.042
A195: 170 | B195: 8885 | C195: 1510450 | D195: 7641 | E195: 1676248.644 | F195: 1739937.558
A196: 171 | B196: 8885 | C196: 1519335 | D196: 7641 | E196: 1688723.92 | F196: 1753299.675
A197: 172 | B197: 8885 | C197: 1528220 | D197: 7641 | E197: 1701235.012 | F197: 1766705.537
A198: 173 | B198: 8885 | C198: 1537105 | D198: 7641 | E198: 1713782.022 | F198: 1780155.286
A199: 174 | B199: 8885 | C199: 1545990 | D199: 7641 | E199: 1726365.053 | F199: 1793649.065
A200: 175 | B200: 8885 | C200: 1554875 | D200: 7641 | E200: 1738984.209 | F200: 1807187.02
A201: 176 | B201: 8885 | C201: 1563760 | D201: 7641 | E201: 1751639.593 | F201: 1820769.295
A202: 177 | B202: 8885 | C202: 1572645 | D202: 7641 | E202: 1764331.309 | F202: 1834396.035
A203: 178 | B203: 8885 | C203: 1581530 | D203: 7641 | E203: 1777059.462 | F203: 1848067.385
A204: 179 | B204: 8885 | C204: 1590415 | D204: 7641 | E204: 1789824.157 | F204: 1861783.491
A205: 180 | B205: 8885 | C205: 1599300 | D205: 7641 | E205: 1802625.497 | F205: 1875544.5
A206: 181 | B206: 8885 | C206: 1608185 | D206: 7641 | E206: 1815463.589 | F206: 1889350.559
A207: 182 | B207: 8885 | C207: 1617070 | D207: 7641 | E207: 1828338.537 | F207: 1903201.816
A208: 183 | B208: 8885 | C208: 1625955 | D208: 7641 | E208: 1841250.449 | F208: 1917098.418
A209: 184 | B209: 8885 | C209: 1634840 | D209: 7641 | E209: 1854199.429 | F209: 1931040.514
... 826 more rows

Sheet CALCUL (hidden)
A5: RENTE A SERVIR | C5: ='Module '!#REF! -> 
A7: DUREE DE SERVICE | C7: ='Module '!#REF! -> 
A11: DATE EFFET | C11: ='Module '!#REF! -> 
A13: DATE RETRAITE | C13: =DATE(YEAR(C11)+C17,MONTH(C11),DAY(C11)-1) -> 
A15: DUREE EN MOIS | C15: =C17*12 -> 
A17: DUREE EN ANNEE | C17: ='Module '!#REF! -> 
A20: DATE NAISSANCE | C20: =+'Module '!#REF! -> 
A28: Police | B28: xxxxxxxxxx | D28: ID | E28: xxxxxx | H28: Date effet | I28: =+C11 ->  | M28: DURRE CO | N28: 15 | O28: Nbre année de cotis pr cap dec | P28: =12*MIN(N28,10) -> 120
M29: Vieillissement | N29: 0
P31: =2016-25 -> 1991 | Y31: =C35/12 -> 0.002916666667 | Z31: =C36/12 -> 0.001622916667
B34: Taux d'interet | G34: Frais d'acquisition | K34: Frais de Gestion | O34: Autres | Y34: =1+Y31 -> 1.002916667 | Z34: =1+Z31 -> 1.001622917 | AB34: =1-L36-H35 -> 0.95
B35: taux interet technique | C35: 0.035 | G35: taux de frais d'acquisition | H35: 0.05 | K35: taux frais fract. mens | L35: ='[3]Comparatif ii - v'!C6 -> 0 | O35: date de naissance | P35: 1991-12-16 | Y35: =Y34^12 -> 1.035566953 | Z35: =Z34^12 -> 1.019649779
B36: taux interet reel | C36: =C35-L37*(1+C35) -> 0.019475 | G36: duree maximale pr calcul | H36: 20 | K36: taux frais gestion prime | L36: ='[3]Comparatif ii - v'!B6 -> 0 | O36: taux majoration qx | P36: 0
B37: taux interet oper deces | C37: 0.035 | G37: Escompte? | H37: N | K37: taux frais gestion PM | L37: 0.015 | O37: date de calcul PM | P37: =DATE(YEAR(I28)+N28,MONTH(I28),DAY(I28)-1) -> 
C38: =C35/12 -> 0.002916666667 | K38: taux frais gestion deces | L38: 0.2 | O38: Capital deces | P38: =D52 -> 
E39: taux frais d'acquisition décès | H39: 0.15 | K39: Assiette gestion contrat | L39: PHT | O39: Doublement deces accidentel | P39: 0
K40: Gestion de rente | L40: ='[3]Comparatif ii - v'!F6 -> 0 | N40: taxes sur décès | P40: 0.03
B42: mensuel composé | C42: =(1+C36)^(1/12)-1 -> 0.001608608167
A44: taux equivalent mensuel de 3.5% | C44: 0.002870898719
Q45: 91
A49: Capital Constitutif de la rente certaine | D49: =C5*(1+L40)*(1+C44)*(1-(1+C44)^(-C7))/C44 ->  | F49: Cotisation | G49: =+C86+H86 -> 
A50: Valeur actuelle du capital Constitutif | D50: =D49*(1+C42)^(-C15) ->  | F50: Capital au Terme | G50: =VLOOKUP(C15,$A$97:$N$2001,11,FALSE) -> 
K51: =10010*12*7 -> 840840
A52: Capital décès | D52: =+C5*12/2 -> 
H53: =H76*C15 -> 
F63: 45 | G63: 0.007272551462
F64: 46 | G64: 0.00772550734
F65: 47 | G65: 0.008161787504
F66: 48 | G66: 0.008586529177
F67: 49 | G67: 0.009010095794
F68: 50 | G68: 0.009434116866
A74: Prime mesuelle garantie décès | F74: Prime mesuelle garantie décès | K74: Cumul
A76: Prime pure décès | C76: =IF('Module '!#REF!=1,G63*D52/12,0) ->  | F76: Prime pure capi | H76: =D50/((1+C42)*(1-(1+C42)^(-C15))/C42) ->  | K76: Prime pure capi | M76: =C76+H76 -> 
A78: Frais de gestion déces | C78: 0 | F78: Frais de gestion | H78: =H76/(1-L35-L36-H35)*L36 ->  | K78: Frais de gestion | M78: =C78+H78 -> 
A80: Frais de fractionnement | C80: =C76/(1-H39-L38-L35)*L35 ->  | F80: Frais de fractionnement | H80: =H76/(1-L35-L36-H35)*L35 ->  | K80: Frais de gestion Encours | M80: =VLOOKUP(C15,$A$97:$N$2001,14,FALSE) -> 
A82: Frais d'acquisition sur le dé | C82: 0 | F82: Frais d'acquisition | H82: =H76/(1-L35-L36-H35)*H35 ->  | K82: Frais de fractionnement | M82: =C80+H80 -> 
A84: Taxes sur décès | C84: =(C76+C78+C82+L35+C80)*P40 ->  | F84: Taxes | H84: =(H76+H78+H82+Q36)*U41 ->  | K84: Frais d'acquisition | M84: =C82+H82 -> 
A86: Prime menselle TTC | C86: =C76+C78+C82+C84 ->  | F86: Prime menselle TTC | H86: =H76+H78+H82+H84+H80 ->  | K86: Taxes | M86: =C84+H84 -> 
K88: Prime menselle TTC | M88: =C86+H86 -> 
Y95: =Y35-1 -> 0.03556695295 | Z95: =Z35-1 -> 0.0196497785 | AB95: =(Y34^60)-1 -> 0.1909428291 | AC95: =AB95/Y31 -> 65.46611285 | AD95: =0.95*Y34*6000 -> 5716.625
A96: N° | B96: Date réception | C96: Date échéance | D96: Cotis | E96: Cions | F96: Fract. | G96: Gestion | H96: Prime dec com mens | I96: Cot epargne | J96: PM DEBUT | K96: PM Fin | L96: PM DEBUT | M96: PM Fin | N96: frais de gestion sur encours | Y96: =Y95/Y31 -> 12.19438387 | Z96: =Z95/Z31 -> 12.10769407 | AD96: =AD95*AC95 -> 374245.2174
A97: 1 | B97: =I28 ->  | C97: =B97 ->  | D97: =$G$49 ->  | E97: =+$C$82+$H$82 ->  | F97: =+$C$80+$H$80 ->  | G97: =+$C$78+$H$78 ->  | H97: =+$C$76+$C$84 ->  | I97: =D97-E97-F97-G97-H97 ->  | J97: =+I97 ->  | K97: =+(1+$C$42)*J97 ->  | L97: =I97 ->  | M97: =L97*(1+$C$44) ->  | N97: =M97-K97 ->  | Y97: =Y96*Y34 -> 12.22995082 | Z97: =Z96*Z34 -> 12.12734385 | AB97: =S97/H97 ->  | AE97: 1
A98: 2 | B98: =DATE(YEAR(B97),MONTH(B97)+1,DAY(B97)) ->  | C98: =B98 ->  | E98: =+$C$82+$H$82 ->  | F98: =+$C$80+$H$80 ->  | G98: =+$C$78+$H$78 ->  | H98: =+$C$76+$C$84 ->  | I98: =D98-E98-F98-G98-H98 ->  | J98: =+K97+I98 ->  | K98: =+(1+$C$42)*J98 ->  | L98: =M97+I98 ->  | M98: =L98*(1+$C$44) ->  | N98: =M98-K98 ->  | Y98: =$H$97*Y97 ->  | Z98: =$H$97*Z97 ->  | AA98: 88815 | AE98: 2
A99: 3 | B99: =DATE(YEAR(B98),MONTH(B98)+1,DAY(B98)) ->  | E99: =+$C$82+$H$82 ->  | J99: =+K98+I99 ->  | K99: =+(1+$C$42)*J99 ->  | L99: =M98+I99 ->  | M99: =L99*(1+$C$44) ->  | AE99: 3
A100: 4 | J100: =+K99+I100 ->  | K100: =+(1+$C$42)*J100 ->  | AE100: 4
A101: 5 | K101: =+(1+$C$42)*J101 ->  | AE101: 5
A102: 6 | AE102: 6
A103: 7 | AE103: 7
A104: 8 | AE104: 8
A105: 9 | AE105: 9
A106: 10 | AE106: 10
A107: 11 | AE107: 11
A108: 12 | X108: =SUM(H97:H108) ->  | Y108: =SUM(S97:S108) -> 0 | Z108: =SUM(D97:D108) ->  | AA108: =SUM(E97:E108) ->  | AB108: =SUM(F97:F108) ->  | AC108: =SUM(G97:G108) ->  | AE108: 12
A109: 13 | Y109: =SUM(W97:W108) -> 0 | AA109: =Z108-AA108 ->  | AE109: 13
A110: 14 | AA110: =AA109-AB108 ->  | AE110: 14
A111: 15 | AA111: =AA110-AC108 ->  | AE111: 15
A112: 16 | AE112: 16
A113: 17 | AE113: 17
A114: 18 | AE114: 18
A115: 19 | AE115: 19
A116: 20 | AE116: 20
A117: 21 | AE117: 21
A118: 22 | AE118: 22
A119: 23 | AE119: 23
A120: 24 | X120: =SUM(H109:H120) ->  | Y120: =SUM(S109:S120) -> 0 | Z120: =SUM(D109:D120) ->  | AA120: =SUM(E109:E120) ->  | AB120: =SUM(F109:F120) ->  | AC120: =SUM(G109:G120) ->  | AE120: 24
A121: 25 | Y121: =Y108+Y120 -> 0 | AE121: 25
A122: 26 | AE122: 26
A123: 27 | AE123: 27
A124: 28 | AE124: 28
A125: 29 | AE125: 29
A126: 30 | AE126: 30
A127: 31 | AE127: 31
A128: 32 | AE128: 32
A129: 33 | AE129: 33
A130: 34 | AE130: 34
A131: 35 | AE131: 35
A132: 36 | X132: =SUM(H121:H132) ->  | Y132: =SUM(S121:S132) -> 0 | AE132: 36
A133: 37 | AE133: 37
A134: 38 | AE134: 38
A135: 39 | AE135: 39
A136: 40 | AE136: 40
A137: 41 | AE137: 41
A138: 42 | AE138: 42
A139: 43 | AE139: 43
A140: 44 | AE140: 44
A141: 45 | AE141: 45
A142: 46 | AE142: 46
A143: 47 | AE143: 47
A144: 48 | X144: =SUM(H133:H144) ->  | AE144: 48
A145: 49 | AE145: 49
A146: 50 | AE146: 50
A147: 51 | AE147: 51
A148: 52 | AE148: 52
A149: 53 | AE149: 53
A150: 54 | AE150: 54
A151: 55 | AE151: 55
A152: 56 | AE152: 56
A153: 57 | AE153: 57
A154: 58 | AE154: 58
A155: 59 | AE155: 59
A156: 60 | X156: =SUM(H145:H156) ->  | AE156: 60
A157: 61
A158: 62
A159: 63
A160: 64
A161: 65 | D161: =$G$49 -> 
A162: 66 | C162: =B162 ->  | F162: =+$C$80+$H$80 ->  | G162: =+$C$78+$H$78 ->  | H162: =+$C$76+$C$84 ->  | I162: =D162-E162-F162-G162-H162 ->  | N162: =M162-K162 -> 
A163: 67 | B163: =DATE(YEAR(B162),MONTH(B162)+1,DAY(B162)) ->  | E163: =+$C$82+$H$82 ->  | L163: =M162+I163 ->  | M163: =L163*(1+$C$44) -> 
A164: 68 | J164: =+K163+I164 -> 
A165: 69 | K165: =+(1+$C$42)*J165 -> 
A166: 70
A167: 71
A168: 72
A169: 73
A170: 74
A171: 75
A172: 76
A173: 77
A174: 78
A175: 79
A176: 80
A177: 81
A178: 82
A179: 83
A180: 84
A181: 85
A182: 86
A183: 87
A184: 88
A185: 89
A186: 90
A187: 91
A188: 92
A189: 93
A190: 94
A191: 95
A192: 96
A193: 97
A194: 98
A195: 99
A196: 100
A197: 101
A198: 102
A199: 103
A200: 104
A201: 105
A202: 106
A203: 107
A204: 108
A205: 109
A206: 110
A207: 111
A208: 112
A209: 113
A210: 114
A211: 115
A212: 116
A213: 117
A214: 118 | J214: =+K213+I214 ->  | K214: =+(1+$C$42)*J214 ->  | L214: =M213+I214 -> 
A215: 119
A216: 120
A217: 121
A218: 122
A219: 123
A220: 124
A221: 125
A222: 126
A223: 127
A224: 128
A225: 129 | D225: =$G$49 -> 
A226: 130 | C226: =B226 ->  | F226: =+$C$80+$H$80 ->  | G226: =+$C$78+$H$78 ->  | H226: =+$C$76+$C$84 ->  | I226: =D226-E226-F226-G226-H226 ->  | N226: =M226-K226 -> 
A227: 131 | B227: =DATE(YEAR(B226),MONTH(B226)+1,DAY(B226)) ->  | E227: =+$C$82+$H$82 ->  | L227: =M226+I227 ->  | M227: =L227*(1+$C$44) -> 
A228: 132 | J228: =+K227+I228 -> 
A229: 133 | K229: =+(1+$C$42)*J229 -> 
A230: 134
A231: 135
A232: 136
A233: 137
A234: 138
A235: 139
A236: 140
A237: 141
A238: 142
A239: 143
A240: 144
A241: 145
A242: 146
A243: 147
A244: 148
A245: 149
A246: 150
A247: 151
A248: 152
A249: 153
A250: 154
A251: 155
A252: 156
A253: 157
A254: 158
A255: 159
... 867 more rows

Sheet Resultat1
A2: NEREM
A4: SIMULATION INDIVIDUELLE
A7: Nom et prénoms | B7: ='Module '!D14 -> LASSEY BEN | G7: Lieu Naissance | I7: ='Module '!D18 -> LOME
A8: Date Naissance | B8: ='Module '!D16 -> 1980-12-18 | G8: Employeur | I8: ='Module '!H16 -> GTAC2A-VIE
A9: Profession | B9: ='Module '!H14 -> CADRE DE BANQUE | G9: Téléphone | I9: ='Module '!D20 -> 90114488
A10: Adresse | B10: ='Module '!H18 -> BP/331 | G10: E-mail | I10: ='Module '!H20 -> ben@yahoo.fr
A12: Conditions de couverture | G12: Conditions paiment Prime
A13: Effet Couverture | D13: ='Module '!D26:F26 -> 2016-12-07 | G13: Date premier paiement | J13: =D13 -> 2016-12-07
A14: Durée de couverture (années) | D14: ='calcu '!$K$27-(YEAR(D13)-YEAR(B8))+5 -> 24 | G14: Durée Paiement (années) | J14: =D14 -> 24
A15: Date échéance | D15: =DATE(YEAR(D13)+D14,MONTH(D13),DAY(D13)-1) -> 2040-12-06 | G15: Périodicité Prime (1=An; 2=Sem; 4=Trim; 12=Mois) | J15: 12
A16: Montant mensuel de la pension | D16: ='Module '!D28:F28 -> 100000 | G16: Date Dernière prime | J16: =DATE(YEAR(D13)+D14,MONTH(D13)-1,DAY(D13)) -> 2040-11-07
A17: Durée de service de la pension (mois) | D17: ='Module '!$D$30:$F$30 -> 36
A19: Evaluation de la prime commerciale | G19: Evolution du Compte constitutif de la pension
A20: Libellé | B20: Montant | C20: Périodicité | D20: Observations | G20: Année | H20: Cumul Cotisations | J20: Valeur Liquidation
A21: Prime constitutive pension | B21: ='calcu '!C15 -> 8885 | C21: =IF(per_prime=1,"Annuelle",IF(per_prime=2,"Semestrielle",IF(per_prime=4,"Trimestrielle",IF(per_prime=12,"Mensuelle")))) -> Mensuelle | G21: =IF(D14>=1,1,"") -> 1 | H21: =IF(G21="","",VLOOKUP(G21*12,'calcu '!$A$26:$F$1036,3,FALSE)) -> 106620 | J21: =IF(G21="","",VLOOKUP(G21*12,'calcu '!$A$26:$F$1036,5,FALSE)) -> 93421.19143
A22: Prime Décès | B22: =D16*6*'calcu '!B3/12*1.03*1.04 -> 389.3812 | C22: =IF(per_prime=1,"Annuelle",IF(per_prime=2,"Semestrielle",IF(per_prime=4,"Trimestrielle",IF(per_prime=12,"Mensuelle")))) -> Mensuelle | G22: =IF(D14>=2,2,"") -> 2 | H22: =IF(G22="","",VLOOKUP(G22*12,'calcu '!$A$26:$F$1036,3,FALSE)) -> 213240 | J22: =IF(G22="","",VLOOKUP(G22*12,'calcu '!$A$26:$F$1036,5,FALSE)) -> 190112.1246
A23: Prime totale | B23: =SUM(B21:B22) -> 9274.3812 | C23: =IF(per_prime=1,"Annuelle",IF(per_prime=2,"Semestrielle",IF(per_prime=4,"Trimestrielle",IF(per_prime=12,"Mensuelle")))) -> Mensuelle | G23: =IF(D14>=3,3,"") -> 3 | H23: =IF(G23="","",VLOOKUP(G23*12,'calcu '!$A$26:$F$1036,3,FALSE)) -> 319860 | J23: =IF(G23="","",VLOOKUP(G23*12,'calcu '!$A$26:$F$1036,5,FALSE)) -> 290187.2403
G24: =IF(D14>=4,4,"") -> 4 | H24: =IF(G24="","",VLOOKUP(G24*12,'calcu '!$A$26:$F$1036,3,FALSE)) -> 426480 | J24: =IF(G24="","",VLOOKUP(G24*12,'calcu '!$A$26:$F$1036,5,FALSE)) -> 393764.9852
A25: Résumé synoptique | G25: =IF(D14>=5,5,"") -> 5 | H25: =IF(G25="","",VLOOKUP(G25*12,'calcu '!$A$26:$F$1036,3,FALSE)) -> 533100 | J25: =IF(G25="","",VLOOKUP(G25*12,'calcu '!$A$26:$F$1036,5,FALSE)) -> 500967.9511
A26: Rubriques | B26: Montant Périodique | C26: Périodicité | D26: Durée (ans) | E26: Montant cumulé | G26: =IF(D14>=6,6,"") -> 6 | H26: =IF(G26="","",VLOOKUP(G26*12,'calcu '!$A$26:$F$1036,3,FALSE)) -> 639720 | J26: =IF(G26="","",VLOOKUP(G26*12,'calcu '!$A$26:$F$1036,5,FALSE)) -> 611923.0208
A27: Prime constitutive Pension | B27: =B21 -> 8885 | C27: =IF(per_prime=1,"Annuelle",IF(per_prime=2,"Semestrielle",IF(per_prime=4,"Trimestrielle",IF(per_prime=12,"Mensuelle")))) -> Mensuelle | D27: =D14 -> 24 | E27: =B27*D27*$J$15 -> 2558880 | G27: =IF(D14>=7,7,"") -> 7 | H27: =IF(G27="","",VLOOKUP(G27*12,'calcu '!$A$26:$F$1036,3,FALSE)) -> 746340 | J27: =IF(G27="","",VLOOKUP(G27*12,'calcu '!$A$26:$F$1036,5,FALSE)) -> 726761.5179
A28: Prime Décès | B28: =B22 -> 389.3812 | C28: =IF(per_prime=1,"Annuelle",IF(per_prime=2,"Semestrielle",IF(per_prime=4,"Trimestrielle",IF(per_prime=12,"Mensuelle")))) -> Mensuelle | D28: =D14 -> 24 | E28: =B28*D28*$J$15 -> 112141.7856 | G28: =IF(D14>=8,8,"") -> 8 | H28: =IF(G28="","",VLOOKUP(G28*12,'calcu '!$A$26:$F$1036,3,FALSE)) -> 852960 | J28: =IF(G28="","",VLOOKUP(G28*12,'calcu '!$A$26:$F$1036,5,FALSE)) -> 845619.3625
A29: Pension de base(*) | B29: =D16 -> 100000 | C29: Mensuelle | D29: =D17 -> 36 | E29: =B29*D29 -> 3600000 | G29: =IF(D14>=9,9,"") -> 9 | H29: =IF(G29="","",VLOOKUP(G29*12,'calcu '!$A$26:$F$1036,3,FALSE)) -> 959580 | J29: =IF(G29="","",VLOOKUP(G29*12,'calcu '!$A$26:$F$1036,5,FALSE)) -> 968637.2316
A30: Pension de base + PB attendues(*) | B30: ='calcu '!$L$10 -> 106871.5013 | C30: Mensuelle | D30: =D17 -> 36 | E30: =B30*D30 -> 3847374.047 | G30: =IF(D14>=10,10,"") -> 10 | H30: =IF(G30="","",VLOOKUP(G30*12,'calcu '!$A$26:$F$1036,3,FALSE)) -> 1066200 | J30: =IF(G30="","",VLOOKUP(G30*12,'calcu '!$A$26:$F$1036,5,FALSE)) -> 1095960.726
B32: (*) La durée de service de la rente est exprimée en mois
B33: (**) Le gain ci-dessus communiqué sera amélioré par les evantuelles participations aux bénéfices distribuées à la fin de chaque année
C39: CE DOCUMENT N'EST PAS CONTRACTUEL ET EST ETABLI A TITRE INDICATIF
A41: Nerem BTCI est un Produit Bancassurance de la BTCI et de GTAC2A-VIE

Sheet Feuil2 (hidden)
A1: age | B1: age calcul | C1: intnom | D1: escnom | E1: alpham | F1: betam | I1: Factprime | J1: intper_ajs | K1: escper_ajs | L1: factper | M1: PUP_DEC | O1: PUI_DEC | P1: PUC_DEC | Q1: PAC_DEC | R1: PUP_SURV | S1: PUI_SURV | T1: PUC_SURV | U1: PAC_SURV | V1: PAC_TOTAL | W1: PAI_TOTAL
A2: =YEAR(effet)-YEAR(dat_nais) -> 41 | B2: =IF(age<=fintranche1,agetranche1,IF(AND(age>=debtranche2,age<=fintranche2),agetranche2,IF(AND(age>=debtranche3,age<=fintranche3),agetranche3,IF(AND(age>=debtranche4,age<=fintranche4),agetranche4,IF(AND(age>=debtranche5,age<=fintranche5),agetranche5,IF(age>=detranche6,agetranche6)))))) -> 43 | C2: =per_prime*((1+int)^(1/per_prime)-1) -> 0.03445078463 | D2: =per_prime*(1-(1+int)^(-1/per_prime)) -> 0.03435216305 | E2: =(int*tauxesc)/(intnom*escnom) -> 1.00009794 | F2: =(int-intnom)/(intnom*escnom) -> 0.4640763936 | I2: =(alpham*(VLOOKUP((agetarif+viel),table,14,FALSE)-VLOOKUP((agetarif+viel+dur_pmt),table,14,FALSE))-betam*(VLOOKUP((agetarif+viel),table,10,FALSE)-VLOOKUP((agetarif+viel+dur_pmt),table,10,FALSE)))/VLOOKUP((agetarif+viel),table,10,FALSE) -> 12.89104246 | J2: =(1+intnet)^(1/per_prime)-1 -> 0.002870898719 | K2: =1-(1+intnet)^(-1/per_prime) -> 0.002862680254 | L2: =(1-invintnet)/(per_prime*escper_ajs) -> 0.9844045359 | M2: =bourse*duréedec*tauxindemdec*(VLOOKUP((agetarif+viel),table,12,FALSE)-VLOOKUP((agetarif+viel+durée),table,12,FALSE))/VLOOKUP((agetarif+viel),table,10,FALSE) -> 92395.08032 | O2: =PUP_DEC+(tauxgestprime+tauxgestencais)*PUC_DEC -> 104213.0557 | P2: =PUP_DEC/(1-tauxgestprime-tauxgestencais-tauxacquiprime) -> 107436.1399 | Q2: =+PUC_DEC/Factprime -> 8334.170042 | R2: =bourse*(1+intnet)^(-durée)*PV(intmens_ajs,durservbourseAnc,-1,,1) -> 913842.067 | S2: =(1+tauxgestrente)*PUP_SURV+fixgest+(tauxgestprime+tauxgestencais)*PUC_SURV -> 1030728.843 | T2: =((1+tauxgestrente)*PUP_SURV+fixgest)/(1-tauxgestprime-tauxgestencais-tauxacquiprime) -> 1062607.055 | U2: =PUC_SURV/PV(intnet,dur_pmt,-1,,1) -> 74885.89773 | V2: =PAC_DEC+PAC_SURV -> 83220.06777 | W2: =+PUI_DEC/Factprime+PUI_SURV/PV(intnet,dur_pmt,-1,,1) -> 80723.46574
B33: (*) La durée de service de la pension est exprimée en mois
B39: 0;002870899
B40: 30 | D40: 1997815.989
B41: 36 | D41: =PV(0.002870899,18,100000,-1,1) -> -1756861.624
B42: =PV(B39,B40,B41,-1,1) -> 
D43: =(D40/D41)*100000 -> -113715.0452
B44: =PV(B39,B41,B41,-1,1) -> 
D45: =D40/D41 -> -1.137150452
C49: RefPens | D49: ValRefPens
C50: 1 | D50: 12
C51: 2 | D51: 18
C52: 3 | D52: 24
C53: 4 | D53: 30
C54: 5 | D54: 36
C57: 3 | D57: =LOOKUP(C57,C50:D54) -> 24
F66: 12
F67: 18
F68: 24
F69: 30
F70: 36
